Workbook

Sheet INDICADORES TCU
A1: SÉRIE HISTÓRICA - INDICADORES DE GESTÃO
A2: INDICADORES PRIMÁRIOS
A3: CUSTO CORRENTE COM HU | B3: ='C_CORR_COM_HU S_HU'!B13 -> 900255671.6
A4: CUSTO CORRENTE SEM HU | B4: ='C_CORR_COM_HU S_HU'!B14 -> 878838255.3
A5: NÚMERO DE ALUNOS TEMPO INTEGRAL - ATI | B5: ='ALUNO TEMPO INTEGRAL'!B4 -> 21107.035
A6: NÚMERO DE ALUNOS EQUIVALENTES = AGE+APGTI+ARTI | B6: =ALUNO_EQUIV_GRADUAÇÃO!H4+'ALUNO TEMPO INTEGRAL'!B2+'ALUNO TEMPO INTEGRAL'!B3 -> 37775.8075
A7: NÚMERO DE PROFESSORES EQUIVALENTES | B7: ='PROFESSOR_FUNCIONÁRIO-EQUIV '!E8 -> 1548.5
A8: NÚMERO DE FUNCIONÁRIOS EQUIVALENTES COM HU | B8: ='PROFESSOR_FUNCIONÁRIO-EQUIV '!I20 -> 2672.6
A9: NÚMERO DE FUNCIONÁRIOS EQUIVALENTES SEM HU | B9: ='PROFESSOR_FUNCIONÁRIO-EQUIV '!I21 -> 2484
A10: TOTAL DE ALUNOS EFETIVAMENTE MATRICULADOS NA GRADUAÇÃO - AG | B10: =MATRICULADOS!C1 -> 18962.5
A11: TOTAL DE ALUNOS EFETIVAMENTE MATRICULADOS NA PÓS-GRADUAÇÃO STRICTO SENSU - APG | B11: =MATRICULADOS!C2 -> 2653.5
A12: TOTAL DE ALUNOS EFETIVAMENTE MATRICULADOS NA RESIDÊNCIA MÉDICA - AR | B12: =MATRICULADOS!C3 -> 256
A13: NÚMERO DE ALUNOS DA GRADUAÇÃO EM TEMPO INTEGRAL (AgTI) | B13: ='ALUNO TEMPO INTEGRAL'!B1 -> 15288.035
A14: NÚMERO DE ALUNOS EM TEMPO INTEGRAL DA PÓS-GRADUAÇÃO (APgTI) | B14: ='ALUNO TEMPO INTEGRAL'!B2 -> 5307
A15: NÚMERO DE ALUNOS DE RESIDÊNCIA MÉDICA (ARTI) | B15: ='ALUNO TEMPO INTEGRAL'!B3 -> 512
A16: ALUNO EQUIVALENTE DE GRADUAÇÃO - AgE | B16: =ALUNO_EQUIV_GRADUAÇÃO!H4 -> 31956.8075
A19: SÉRIE HISTÓRICA - INDICADORES DE GESTÃO
A20: INDICADORES DE DESEMPENHO
A21: CUSTO CORRENTE COM HU / ALUNO EQUIVALENTE TEMPO INTEGRAL | B21: =B3/B6 -> 23831.54011
A22: CUSTO CORRENTE SEM HU / ALUNO EQUIVALENTE TEMPO INTEGRAL | B22: =B4/B6 -> 23264.57893
A23: ALUNO TEMPO INTEGRAL / NÚMERO DE PROFESSORES EQUIVALENTES | B23: =B5/B7 -> 13.63063287
A24: ALUNO TEMPO INTEGRAL / FUNCIONÁRIO EQUIV. COM H.U. | B24: =B5/B8 -> 7.897566041
A25: ALUNO TEMPO INTEGRAL / FUNCIONÁRIO EQUIV. SEM H.U. | B25: =B5/B9 -> 8.497196055
A26: FUNCIONÁRIO EQUIV. COM H.U. / PROFESSOR EQUIV. | B26: =B8/B7 -> 1.725928318
A27: FUNCIONÁRIO EQUIV. SEM H.U. / PROFESSOR EQUIV. | B27: =B9/B7 -> 1.604133032
A28: GRAU DE PARTICIPAÇÃO ESTUDANTIL (GPE) - AGTI/AG | B28: =B13/B10 -> 0.8062246539
A29: GRAU DE ENVOLVIMENTO DISCENTE COM PÓS-GRADUAÇÃO (GEPG) | B29: =B11/(B10+B11) -> 0.1227562916
A30: CONCEITO CAPES MEC PARA A PÓS GRADUAÇÃO | B30: ='CONCEITO CAPES'!B37 -> 4.457142857
A31: ÍNDICE DE QUALIFICAÇÃO DO CORPO DOCENTE (IQCD) | B31: ='QUALIFICAÇÃO DOCENTE'!C8 -> 4.886861314
A32: TAXA DE SUCESSO NA GRADUAÇÃO (TSG) EM % | B32: ='TAXA DE SUCESSO NA GRADUAÇÃO'!M9 -> 0.5688001566

Sheet C_CORR_COM_HU S_HU
A1: COMPONENTE
A2: CUSTO CORRENTE SEM HU
A3: (+) Despesas correntes do órgão Universidade, com todas as UGs, inclusive hospitais universitários, se houver (conta SIAFI nº 3.30.00.00) | B3: 1223082232
A4: (-) 65 % das despesas correntes totais do(s) hospital(is) universitário(s) e maternidade | B4: 39775201.68
A5: (-) 100 % das despesas correntes totais do(s) hospital(is) universitário(s) e maternidade2 | B5: 61192617.97
A6: (-) Aposentadorias e Reformas do órgão Universidade (conta SIAFI nº 3.31.90.01) | B6: 209381266.9
A7: (-) Pensões do órgão Universidade (conta SIAFI nº 3.31.90.03) | B7: 48282661.81
A8: (-) Sentenças Judiciais do órgão Universidade (conta SIAFI nº 3.31.90.91) | B8: 1996934.71
A9: (-) Despesas com pessoal cedido – docente do órgão Universidade | B9: 4406184.04
A10: (-) Despesas com pessoal cedido - técnico-administrativo do órgão Universidade | B10: 5186951.7
A11: (-) Despesa com afastamento País/Exterior – docente do órgão Universidade | B11: 11016081.86
A12: (-) Despesa com afastamento País/Exterior - técnico-administrativo do órgão | B12: 2781277.29
A13: CUSTO CORRENTE COM HU | B13: =B3-B4-B6-B7-B8-B9-B10-B11-B12 -> 900255671.6
A14: CUSTO CORRENTE SEM HU | B14: =B3-B5-B6-B7-B8-B9-B10-B11-B12 -> 878838255.3
A16: *Considerar despesas de pessoal cedido/afastado do HU
C23: .

Sheet MATRICULADOS
A1: TOTAL DE ALUNOS EFETIVAMENTE MATRICULADOS NA GRADUAÇÃO - AG | C1: =E101 -> 18962.5
A2: TOTAL DE ALUNOS EFETIVAMENTE MATRICULADOS NA PÓS-GRADUAÇÃO STRICTO SENSU - APG | C2: =J67 -> 2653.5
A3: TOTAL DE ALUNOS EFETIVAMENTE MATRICULADOS NA RESIDÊNCIA MÉDICA - AR | C3: =O46 -> 256
A6: ALUNOS GRADUAÇÃO | G6: ALUNOS PÓS GRADUAÇÃO | L6: ALUNOS RESIDÊNCIA
A7: CÓDIGO INEP | B7: CURSO | C7: 1º SEMESTRE | D7: 2º SEMESTRE | E7: MATRICULAS | G7: CURSO | H7: 1º SEM | I7: 2º SEM | J7: MATRICULAS | L7: PROGRAMA DE RESIDÊNCIA | M7: TOTAL 1º SEMESTRE | N7: TOTAL 2º SEMESTRE | O7: Total
A8: 22451 | B8: ADMINISTRAÇÃO (INTEGRAL/NOTURNO) | C8: 413 | D8: 364 | E8: =AVERAGE(C8,D8) -> 388.5 | G8: DOUTORADO EM CIENCIAS FARMACEUTICAS | H8: 32 | I8: 15 | J8: =AVERAGE(H8:I8) -> 23.5 | L8: ANESTESIOLOGIA | M8: 10 | N8: 10 | O8: =AVERAGE(M8:N8) -> 10
A9: 13114 | B9: ARQUITETURA E URBANISMO | C9: 419 | D9: 419 | E9: =AVERAGE(C9,D9) -> 419 | G9: DOUTORADO EM ARTES, CULTURA E LINGUAGENS | H9: 32 | I9: 29 | J9: 30.5 | L9: CARDIOLOGIA | M9: 4 | N9: 4 | O9: 4
A10: 1153948 | B10: BACHARELADO EM ARTES VISUAIS | C10: 211 | D10: 182 | E10: 196.5 | G10: DOUTORADO EM SERVICO SOCIAL | H10: 42 | I10: 45 | J10: 43.5 | L10: CIRURGIA GERAL | M10: 9 | N10: 9 | O10: 9
A11: 38994 | B11: BACHARELADO ENFERMAGEM | C11: 325 | D11: 327 | E11: 326 | G11: DOUTORADO EM COMUNICACAO | H11: 45 | I11: 44 | J11: 44.5 | L11: CIRURGIA PLÁSTICA | M11: 4 | N11: 4 | O11: 4
A12: 1128364 | B12: BACHARELADO SISTEMAS DE INFORMAÇÃO - NOTURNO | C12: 169 | D12: 185 | E12: 177 | G12: DOUTORADO EM BIOQUIMICA E BIOLOGIA MOLECULAR | H12: 15 | I12: 16 | J12: 15.5 | L12: CLÍNICA MÉDICA | M12: 16 | N12: 16 | O12: 16
A13: 65361 | B13: CIÊNCIA DA COMPUTAÇÃO - INTEGRAL | C13: 128 | D13: 119 | E13: 123.5 | G13: DOUTORADO EM CIENCIA DA RELIGIAO | H13: 45 | I13: 40 | J13: 42.5 | L13: DERMATOLOGIA | M13: 6 | N13: 6 | O13: 6
A14: 18518 | B14: CIÊNCIA DA COMPUTAÇÃO - NOTURNO | C14: 194 | D14: 207 | E14: 200.5 | G14: DOUTORADO EM CIENCIAS BIOLOGICAS (COMPORTAMENTO E BIOLOGIA ANIMAL) | H14: 1 | I14: 0 | J14: 0.5 | L14: ECOCARDIOGRAFIA | M14: 4 | N14: 4 | O14: 4
A15: 1132074 | B15: CIÊNCIAS CONTÁBEIS (INTEGRAL/NOTURNO) | C15: 401 | D15: 372 | E15: 386.5 | G15: DOUTORADO EM CIENCIAS BIOLOGICAS(IMUNOLOGIA E DOENCAS INFECTO-PARASITARIAS/GENETICA E BIOTECNOLOGIA | H15: 32 | I15: 31 | J15: 31.5 | L15: ENDOCRINOLOGIA E METABOLOGIA | M15: 4 | N15: 4 | O15: 4
A16: 13090 | B16: CIÊNCIAS ECONÔMICAS (INTEGRAL/NOTURNO) | C16: 537 | D16: 473 | E16: 505 | G16: DOUTORADO EM CIENCIAS SOCIAIS | H16: 65 | I16: 61 | J16: 63 | L16: ENDOSCOPIA | M16: 1 | N16: 2 | O16: 1.5
A17: 1153947 | B17: CINEMA E AUDIOVISUAL | C17: 275 | D17: 243 | E17: 259 | G17: DOUTORADO EM BIODIVERSIDADE E CONSERVACAO DA NATUREZA | H17: 35 | I17: 36 | J17: 35.5 | L17: ENDOSCOPIA DIGESTIVA | M17: 2 | N17: 2 | O17: 2
A18: 1153949 | B18: DESIGN | C18: 240 | D18: 205 | E18: 222.5 | G18: DOUTORADO EM ECONOMIA | H18: 47 | I18: 42 | J18: 44.5 | L18: GASTROENTEROLOGIA | M18: 8 | N18: 7 | O18: 7.5
A19: 13089 | B19: DIREITO | C19: 494 | D19: 480 | E19: 487 | G19: DOUTORADO EM EDUCACAO | H19: 97 | I19: 107 | J19: 102 | L19: HEMATOLOGIA E HEMOTERAPIA | M19: 4 | N19: 3 | O19: 3.5
A20: 21860 | B20: DIREITO | C20: 500 | D20: 487 | E20: 493.5 | G20: DOUTORADO EM EDUCACAO FISICA | H20: 38 | I20: 39 | J20: 38.5 | L20: INFECTOLOGIA | M20: 2 | N20: 2 | O20: 2
A21: 116496 | B21: ENGENHARIA AMBIENTAL E SANITÁRIA | C21: 273 | D21: 210 | E21: 241.5 | G21: DOUTORADO EM ENGENHARIA ELETRICA | H21: 90 | I21: 88 | J21: 89 | L21: MEDICINA DE FAMÍLIA E COMUNIDADE | M21: 3 | N21: 2 | O21: 2.5
A22: 13094 | B22: ENGENHARIA CIVIL | C22: 520 | D22: 506 | E22: 513 | G22: DOUTORADO EM FISICA | H22: 38 | I22: 40 | J22: 39 | L22: MEDICINA INTENSIVA | M22: 2 | N22: 3 | O22: 2.5
A23: 1120244 | B23: ENGENHARIA COMPUTACIONAL | C23: 124 | D23: 107 | E23: 115.5 | G23: DOUTORADO EM HISTORIA | H23: 70 | I23: 72 | J23: 71 | L23: NEFROLOGIA | M23: 6 | N23: 7 | O23: 6.5
A24: 38594 | B24: ENGENHARIA DE PRODUÇÃO | C24: 293 | D24: 298 | E24: 295.5 | G24: DOUTORADO EM LETRAS: ESTUDOS LITERARIOS | H24: 72 | I24: 69 | J24: 70.5 | L24: NEONATOLOGIA | M24: 2 | N24: 1 | O24: 1.5
A25: 13095 | B25: ENGENHARIA ELÉTRICA - EM EXTINÇÃO | C25: 0 | D25: 0 | E25: 0 | G25: DOUTORADO EM LINGUISTICA | H25: 44 | I25: 45 | J25: 44.5 | L25: NEUROLOGIA | M25: 12 | N25: 12 | O25: 12
A26: 49788 | B26: ENGENHARIA ELÉTRICA - EM EXTINÇÃO | C26: 0 | D26: 0 | E26: 0 | G26: DOUTORADO EM MODELAGEM COMPUTACIONAL | H26: 46 | I26: 35 | J26: 40.5 | L26: OBSTETRÍCIA E GINECOLOGIA | M26: 11 | N26: 12 | O26: 11.5
A27: 1109475 | B27: ENGENHARIA ELÉTRICA - ENERGIA | C27: 239 | D27: 199 | E27: 219 | G27: DOUTORADO EM PSICOLOGIA | H27: 64 | I27: 39 | J27: 51.5 | L27: OFTALMOLOGIA | M27: 4 | N27: 4 | O27: 4
A28: 1109485 | B28: ENGENHARIA ELÉTRICA - ROBÓTICA E AUTOMAÇÃO INDUSTRIAL | C28: 249 | D28: 235 | E28: 242 | G28: DOUTORADO EM QUIMICA | H28: 61 | I28: 62 | J28: 61.5 | L28: ORTOPEDIA E TRAUMATOLOGIA | M28: 8 | N28: 7 | O28: 7.5
A29: 1109486 | B29: ENGENHARIA ELÉTRICA - SISTEMAS DE POTÊNCIA | C29: 216 | D29: 210 | E29: 213 | G29: DOUTORADO EM SAUDE | H29: 63 | I29: 57 | J29: 60 | L29: OTORRINOLARINGOLOGIA | M29: 6 | N29: 6 | O29: 6
A30: 1109487 | B30: ENGENHARIA ELÉTRICA - SISTEMAS ELETRÔNICOS | C30: 205 | D30: 190 | E30: 197.5 | G30: DOUTORADO EM SAUDE COLETIVA | H30: 52 | I30: 46 | J30: 49 | L30: PATOLOGIA | M30: 3 | N30: 4 | O30: 3.5
A31: 1109488 | B31: ENGENHARIA ELÉTRICA - TELECOMUNICAÇÕES | C31: 172 | D31: 169 | E31: 170.5 | G31: DOUTORADO EM ODONTOLOGIA | H31: 31 | I31: 42 | J31: 36.5 | L31: PEDIATRIA | M31: 19 | N31: 17 | O31: 18
A32: 1109489 | B32: ENGENHARIA MECÂNICA | C32: 268 | D32: 273 | E32: 270.5 | G32: MESTRADO ACADEMICO EM ADMINISTRACAO | H32: 34 | I32: 33 | J32: 33.5 | L32: PNEUMOLOGIA | M32: 3 | N32: 4 | O32: 3.5
A33: 113531 | B33: ESTATÍSTICA | C33: 65 | D33: 61 | E33: 63 | G33: MESTRADO EM AMBIENTE CONSTRUIDO | H33: 57 | I33: 49 | J33: 53 | L33: PSIQUIATRIA | M33: 11 | N33: 12 | O33: 11.5
A34: 38509 | B34: FARMÁCIA | C34: 530 | D34: 522 | E34: 526 | G34: MESTRADO EM ARTES, CULTURA E LINGUAGENS | H34: 58 | I34: 54 | J34: 56 | L34: RADIOLOGIA E DIAGNÓSTICO POR IMAGEM | M34: 5 | N34: 4 | O34: 4.5
A35: 13118 | B35: FISIOTERAPIA | C35: 219 | D35: 195 | E35: 207 | G35: MESTRADO EM BIOQUIMICA E BIOLOGIA MOLECULAR | H35: 5 | I35: 5 | J35: 5 | L35: REUMATOLOGIA | M35: 4 | N35: 4 | O35: 4
A36: 27657 | B36: JORNALISMO | C36: 144 | D36: 154 | E36: 149 | G36: MESTRADO EM CIENCIA DA COMPUTACAO | H36: 53 | I36: 35 | J36: 44 | L36: UROLOGIA | M36: 3 | N36: 3 | O36: 3
A37: 36356 | B37: JORNALISMO | C37: 188 | D37: 164 | E37: 176 | G37: MESTRADO EM CIENCIA DA RELIGIAO | H37: 41 | I37: 31 | J37: 36 | L37: GASTROENTEROLOGIA (PEDIÁTRICA)
A38: 1268983 | B38: LETRAS - LIBRAS | C38: 108 | D38: 112 | E38: 110 | G38: MESTRADO EM CIENCIAS BIOLOGICAS(IMUNOLOGIA/GENETICA E BIOTECNOLOGIA) | H38: 36 | I38: 36 | J38: 36 | L38: HEPATOLOGIA
A39: 1153951 | B39: LICENCIATURA EM ARTES VISUAIS | C39: 186 | D39: 170 | E39: 178 | G39: MESTRADO EM BIODIVERSIDADE E CONSERVACAO DA NATUREZA | H39: 62 | I39: 47 | J39: 54.5 | L39: PSIQUIATRIA DA INFÂNCIA E ADOLESCÊNCIA
A40: 1166037 | B40: LICENCIATURA EM FÍSICA - NOTURNO | C40: 41 | D40: 44 | E40: 42.5 | G40: MESTRADO ACADEMICO EM CIENCIAS FARMACEUTICAS | H40: 30 | I40: 23 | J40: 26.5 | L40: FARMÁCIA | M40: 2 | N40: 2 | O40: 2
A41: 1166039 | B41: LICENCIATURA EM QUÍMICA - NOTURNO | C41: 56 | D41: 65 | E41: 60.5 | G41: MESTRADO EM CIENCIAS SOCIAIS | H41: 56 | I41: 51 | J41: 53.5 | L41: GESTAO HOSPITALAR - ADMINISTRAÇÃO | M41: 2 | N41: 2 | O41: 2
A42: 338994 | B42: LICENCIATURA ENFERMAGEM (PÓS BACHARELADO APENAS) | C42: 4 | D42: 1 | E42: 2.5 | G42: MESTRADO EM CLINICA ODONTOLOGICA | H42: 2 | I42: 0 | J42: 1 | L42: GESTÃO HOSPITALAR - ECONOMIA | M42: 2 | N42: 2 | O42: 2
A43: 1166038 | B43: LICENCIATURA MATEMÁTICA - NOTURNO | C43: 53 | D43: 52 | E43: 52.5 | G43: MESTRADO EM COMUNICACAO | H43: 50 | I43: 44 | J43: 47 | L43: MULTIPROFISSIONAL EM SAÚDE DO ADULTO COM ÊNFASE EM DOENÇAS CRÔNICO-DEGENERATIVAS | M43: =4+3+4+4+4+4+4+4 -> 31 | N43: 29 | O43: 30
A44: 5000615 | B44: LICENCIATURA GEOGRAFIA (CÓDIGO DE ABI ERRADO) | C44: 53 | D44: 37 | E44: 45 | G44: MESTRADO EM DIREITO | H44: 75 | I44: 51 | J44: 63 | L44: INTEGRADA MULTIPROFISSIONAL EM ATENÇÃO HOSPITALAR | M44: 31 | N44: 30 | O44: 30.5
A45: 13103 | B45: MEDICINA | C45: 1100 | D45: 1007 | E45: 1053.5 | G45: MESTRADO EM ECONOMIA APLICADA | H45: 45 | I45: 34 | J45: 39.5 | L45: MULTIPROFISSIONAL EM SAÚDE DA FAMÍLIA | M45: 15 | N45: 13 | O45: 14
A46: 1268972 | B46: MEDICINA VETERINÁRIA | C46: 554 | D46: 631 | E46: 592.5 | G46: MESTRADO EM EDUCACAO | H46: 93 | I46: 119 | J46: 106 | L46: TOTAIS | M46: =SUM(M8:M45) -> 259 | N46: 253 | O46: =(M46+N46)/2 -> 256
A47: 1153950 | B47: MODA | C47: 215 | D47: 192 | E47: 203.5 | G47: MESTRADO EM EDUCACAO FISICA | H47: 20 | I47: 27 | J47: 23.5 | L47: ARTI | O47: =O46*2 -> 512
A48: 116490 | B48: MÚSICA | C48: 55 | D48: 48 | E48: 51.5 | G48: MESTRADO ACADEMICO EM ENFERMAGEM | H48: 41 | I48: 51 | J48: 46
A49: 1278855 | B49: MÚSICA | C49: 57 | D49: 54 | E49: 55.5 | G49: MESTRADO EM ENGENHARIA ELETRICA | H49: 84 | I49: 81 | J49: 82.5
A50: 116498 | B50: NUTRIÇÃO | C50: 468 | D50: 467 | E50: 467.5 | G50: MESTRADO ACADEMICO EM ENGENHARIA CIVIL | H50: 55 | I50: 47 | J50: 51
A51: 13104 | B51: ODONTOLOGIA | C51: 383 | D51: 385 | E51: 384 | G51: MESTRADO EM FISICA | H51: 27 | I51: 25 | J51: 26
A52: 13105 | B52: PEDAGOGIA (MATUTINO/NOTURNO) | C52: 352 | D52: 353 | E52: 352.5 | G52: MESTRADO EM FILOSOFIA | H52: 23 | I52: 24 | J52: 23.5
A53: 13113 | B53: PSICOLOGIA | C53: 283 | D53: 258 | E53: 270.5 | G53: MESTRADO EM CIENCIAS DA REABILITACAO E DESEMPENHO FISICO-FUNCIONAL | H53: 40 | I53: 46 | J53: 43
A54: 1374873 | B54: RÁDIO, TV E INTERNET | C54: 144 | D54: 132 | E54: 138 | G54: MESTRADO EM GEOGRAFIA | H54: 52 | I54: 50 | J54: 51
A55: 13107 | B55: SERVIÇO SOCIAL (MATUTINO/NOTURNO) | C55: 322 | D55: 316 | E55: 319 | G55: MESTRADO EM HISTORIA | H55: 72 | I55: 67 | J55: 69.5
A56: 21589 | B56: TURISMO (INTEGRAL E NOTURNO) | C56: 251 | D56: 244 | E56: 247.5 | G56: MESTRADO EM LETRAS: ESTUDOS LITERARIOS | H56: 47 | I56: 42 | J56: 44.5
A57: 1178684 | B57: ADMINISTRAÇÃO GV | C57: 208 | D57: 173 | E57: 190.5 | G57: MESTRADO EM LINGUISTICA | H57: 37 | I57: 43 | J57: 40
A58: 1183351 | B58: CIÊNCIAS CONTÁBEIS GV | C58: 118 | D58: 85 | E58: 101.5 | G58: MESTRADO ACADEMICO EM MATEMATICA | H58: 26 | I58: 20 | J58: 23
A59: 1178683 | B59: CIÊNCIAS ECONÔMICAS GV | C59: 185 | D59: 188 | E59: 186.5 | G59: MESTRADO EM MODELAGEM COMPUTACIONAL | H59: 43 | I59: 34 | J59: 38.5
A60: 1178675 | B60: DIREITO GV | C60: 453 | D60: 485 | E60: 469 | G60: MESTRADO EM PSICOLOGIA | H60: 41 | I60: 38 | J60: 39.5
A61: 1270439 | B61: EDUCAÇÃO FÍSICA GV | C61: 158 | D61: 155 | E61: 156.5 | G61: MESTRADO EM QUIMICA | H61: 38 | I61: 37 | J61: 37.5
A62: 1185503 | B62: FARMÁCIA GV | C62: 225 | D62: 215 | E62: 220 | G62: MESTRADO EM SAUDE | H62: 68 | I62: 63 | J62: 65.5
A63: 1178689 | B63: FISIOTERAPIA GV | C63: 198 | D63: 186 | E63: 192 | G63: MESTRADO EM SAUDE COLETIVA | H63: 50 | I63: 38 | J63: 44
A64: 5001167 | B64: MEDICINA GV | C64: 601 | D64: 559 | E64: 580 | G64: MESTRADO EM SERVICO SOCIAL | H64: 40 | I64: 37 | J64: 38.5
A65: 1178688 | B65: NUTRIÇÃO GV | C65: 230 | D65: 219 | E65: 224.5 | G65: MESTRADO ACADEMICO EM CIENCIAS APLICADAS A SAUDE | H65: 50 | I65: 42 | J65: 46
A66: 5001168 | B66: ODONTOLOGIA GV | C66: 276 | D66: 276 | E66: 276 | G66: MESTRADO EM ODONTOLOGIA | H66: 36 | I66: 39 | J66: 37.5
A67: 5000608 | B67: ABI - CIÊNCIAS BIOLÓGICAS | C67: 93 | D67: 73 | E67: 83 | G67: TOTAL MATRÍCULAS PÓS GRADUAÇÃO | H67: =SUM(H8:H66) -> 2744 | I67: 2563 | J67: 2653.5
A68: 13086 | B68: CIÊNCIAS BIOLÓGICAS | C68: 91 | D68: 78 | E68: 84.5
A69: 313086 | B69: CIÊNCIAS BIOLÓGICAS | C69: 159 | D69: 156 | E69: 157.5
A70: 5000610 | B70: ABI - EDUCAÇÃO FÍSICA | C70: 371 | D70: 364 | E70: 367.5
A71: 13092 | B71: EDUCAÇÃO FÍSICA | C71: 61 | D71: 63 | E71: 62
A72: 313092 | B72: EDUCAÇÃO FÍSICA | C72: 65 | D72: 60 | E72: 62.5
A73: 5000611 | B73: ABI - FILOSOFIA | C73: 39 | D73: 24 | E73: 31.5
A74: 13097 | B74: FILOSOFIA | C74: 90 | D74: 79 | E74: 84.5
A75: 313097 | B75: FILOSOFIA | C75: 42 | D75: 40 | E75: 41
A76: 5000613 | B76: ABI - FíSICA | C76: 67 | D76: 55 | E76: 61
A77: 13098 | B77: FÍSICA | C77: 4 | D77: 3 | E77: 3.5
A78: 313098 | B78: FÍSICA | C78: 9 | D78: 9 | E78: 9
A79: 313099 | B79: GEOGRAFIA | C79: 105 | D79: 94 | E79: 99.5
A80: 13099 | B80: GEOGRAFIA | C80: 227 | D80: 206 | E80: 216.5
A81: 5000616 | B81: ABI - HISTÓRIA (INTEGRAL/NOTURNO) | C81: 107 | D81: 69 | E81: 88
A82: 13100 | B82: HISTÓRIA | C82: 237 | D82: 219 | E82: 228
A83: 313100 | B83: HISTÓRIA | C83: 90 | D83: 99 | E83: 94.5
A84: 5000617 | B84: ABI - LETRAS (INTEGRAL/NOTURNO). OBS. NOTURNO SÓ LICENCIATURA | C84: 96 | D84: 65 | E84: 80.5
A85: 13101 | B85: LETRAS | C85: 311 | D85: 332 | E85: 321.5
A86: 313101 | B86: LETRAS | C86: 82 | D86: 67 | E86: 74.5
A87: 5000618 | B87: ABI - MATEMÁTICA | C87: 54 | D87: 37 | E87: 45.5
A88: 13102 | B88: MATEMÁTICA | C88: 22 | D88: 20 | E88: 21
A89: 313102 | B89: MATEMÁTICA | C89: 16 | D89: 14 | E89: 15
A90: 5000619 | B90: ABI - QUíMICA | C90: 76 | D90: 42 | E90: 59
A91: 13106 | B91: QUÍMICA | C91: 37 | D91: 36 | E91: 36.5
A92: 313106 | B92: QUÍMICA | C92: 82 | D92: 70 | E92: 76
A93: 116502 | B93: CIÊNCIAS EXATAS - BI/LI | C93: 469 | D93: 290 | E93: 379.5
A94: 1120242 | B94: BACHARELADO INTERDISCIPLINAR DE HUMANAS - BI/LI INTEGRAL/NOTURNO | C94: 663 | D94: 588 | E94: 625.5
A95: 5000609 | B95: ABI - CIÊNCIAS SOCIAIS (13087/313087) | C95: 90 | D95: 80 | E95: 85
A96: 13087 | B96: CIÊNCIAS SOCIAIS | C96: 42 | D96: 46 | E96: 44
A97: 313087 | B97: CIÊNCIAS SOCIAIS | C97: 68 | D97: 65 | E97: 66.5
A98: 1165350 | B98: BACHARELADO CIÊNCIA DA RELIGIAO | C98: 34 | D98: 41 | E98: 37.5
A99: 1165686 | B99: LICENCIATURA CIÊNCIA DA RELIGIÃO | C99: 38 | D99: 42 | E99: 40
A100: 116500 | B100: INTERDISCIPLINAR EM ARTES E DESIGN - BI/LI - EXTINTO | C100: 187 | D100: 162 | E100: 174.5
C101: =SUM(C8:C100) -> 19572 | D101: 18353 | E101: =SUM(E8:E100) -> 18962.5

Sheet ALUNO TEMPO INTEGRAL
A1: NÚMERO DE ALUNOS DA GRADUAÇÃO EM TEMPO INTEGRAL - AGTI | B1: =H9 -> 15288.035
A2: NÚMERO DE ALUNOS EM TEMPO INTEGRAL DA PÓS-GRADUAÇÃO (APGTI) | B2: =MATRICULADOS!J67*2 -> 5307
A3: NÚMERO DE ALUNOS DE RESIDÊNCIA MÉDICA | B3: =MATRICULADOS!O46*2 -> 512
A4: ATI - NÚMERO DE ALUNOS TEMPO INTEGRAL | B4: =SUM(B1:B3) -> 21107.035
A6: COMPONENTE
A7: ALUNO GRADUAÇÃO TEMPO INTEGRAL (AGTI)
A8: CURSO | B8: CÓDIGO INEP | C8: NÚMERO DE DIPLOMADOS (NDI) | D8: DURAÇÃO DO CURSO (DPC) | E8: FATOR DE RETENÇÃO | F8: INGRESSANTES (NI) | G8: ALUNO TEMPO INTEGRAL | H8: AGTI TOTAL
A9: =MATRICULADOS!B8 -> ADMINISTRAÇÃO (INTEGRAL/NOTURNO) | B9: =MATRICULADOS!A8 -> 22451 | C9: 61 | D9: 4 | E9: 0.12 | F9: 73 | G9: =SUM((C9*D9)*(1+E9)+((F9-C9)/4)*D9) -> 285.28 | H9: =G102 -> 15288.035
A10: =MATRICULADOS!B9 -> ARQUITETURA E URBANISMO | B10: =MATRICULADOS!A9 -> 13114 | C10: 46 | D10: 4 | E10: 0.12 | F10: 76 | G10: 236.08
A11: =MATRICULADOS!B10 -> BACHARELADO EM ARTES VISUAIS | B11: =MATRICULADOS!A10 -> 1153948 | C11: 13 | D11: 2 | E11: 0.1 | F11: 56 | G11: 50.1
A12: =MATRICULADOS!B11 -> BACHARELADO ENFERMAGEM | B12: =MATRICULADOS!A11 -> 38994 | C12: 53 | D12: 5 | E12: 0.066 | F12: 79 | G12: 314.99
A13: =MATRICULADOS!B12 -> BACHARELADO SISTEMAS DE INFORMAÇÃO - NOTURNO | B13: =MATRICULADOS!A12 -> 1128364 | C13: 17 | D13: 4 | E13: 0.1325 | F13: 39 | G13: 99.01
A14: =MATRICULADOS!B13 -> CIÊNCIA DA COMPUTAÇÃO - INTEGRAL | B14: =MATRICULADOS!A13 -> 65361 | C14: 18 | D14: 4 | E14: 0.1325 | F14: 36 | G14: 99.54
A15: =MATRICULADOS!B14 -> CIÊNCIA DA COMPUTAÇÃO - NOTURNO | B15: =MATRICULADOS!A14 -> 18518 | C15: 15 | D15: 4 | E15: 0.1325 | F15: 39 | G15: 91.95
A16: =MATRICULADOS!B15 -> CIÊNCIAS CONTÁBEIS (INTEGRAL/NOTURNO) | B16: =MATRICULADOS!A15 -> 1132074 | C16: 52 | D16: 4 | E16: 0.12 | F16: 73 | G16: 253.96
A17: =MATRICULADOS!B16 -> CIÊNCIAS ECONÔMICAS (INTEGRAL/NOTURNO) | B17: =MATRICULADOS!A16 -> 13090 | C17: 72 | D17: 4 | E17: 0.12 | F17: 104 | G17: 354.56
A18: =MATRICULADOS!B17 -> CINEMA E AUDIOVISUAL | B18: =MATRICULADOS!A17 -> 1153947 | C18: 56 | D18: 2 | E18: 0.1 | F18: 76 | G18: 133.2
A19: =MATRICULADOS!B18 -> DESIGN | B19: =MATRICULADOS!A18 -> 1153949 | C19: 49 | D19: 2 | E19: 0.1 | F19: 85 | G19: 125.8
A20: =MATRICULADOS!B19 -> DIREITO | B20: =MATRICULADOS!A19 -> 13089 | C20: 100 | D20: 5 | E20: 0.12 | F20: 96 | G20: 555
A21: =MATRICULADOS!B20 -> DIREITO | B21: =MATRICULADOS!A20 -> 21860 | C21: 69 | D21: 5 | E21: 0.12 | F21: 96 | G21: 420.15
A22: =MATRICULADOS!B21 -> ENGENHARIA AMBIENTAL E SANITÁRIA | B22: =MATRICULADOS!A21 -> 116496 | C22: 21 | D22: 5 | E22: 0.082 | F22: 40 | G22: 137.36
A23: =MATRICULADOS!B22 -> ENGENHARIA CIVIL | B23: =MATRICULADOS!A22 -> 13094 | C23: 77 | D23: 5 | E23: 0.082 | F23: 86 | G23: 427.82
A24: =MATRICULADOS!B23 -> ENGENHARIA COMPUTACIONAL | B24: =MATRICULADOS!A23 -> 1120244 | C24: 10 | D24: 5 | E24: 0.082 | F24: 23 | G24: 70.35
A25: =MATRICULADOS!B24 -> ENGENHARIA DE PRODUÇÃO | B25: =MATRICULADOS!A24 -> 38594 | C25: 47 | D25: 5 | E25: 0.082 | F25: 66 | G25: 278.02
A26: =MATRICULADOS!B25 -> ENGENHARIA ELÉTRICA - EM EXTINÇÃO | B26: =MATRICULADOS!A25 -> 13095 | C26: 0 | D26: 5 | E26: 0.082 | F26: 0 | G26: 0
A27: =MATRICULADOS!B26 -> ENGENHARIA ELÉTRICA - EM EXTINÇÃO | B27: =MATRICULADOS!A26 -> 49788 | C27: 0 | D27: 5 | E27: 0.082 | F27: 0 | G27: 0
A28: =MATRICULADOS!B27 -> ENGENHARIA ELÉTRICA - ENERGIA | B28: =MATRICULADOS!A27 -> 1109475 | C28: 28 | D28: 5 | E28: 0.082 | F28: 43 | G28: 170.23
A29: =MATRICULADOS!B28 -> ENGENHARIA ELÉTRICA - ROBÓTICA E AUTOMAÇÃO INDUSTRIAL | B29: =MATRICULADOS!A28 -> 1109485 | C29: 30 | D29: 5 | E29: 0.082 | F29: 43 | G29: 178.55
A30: =MATRICULADOS!B29 -> ENGENHARIA ELÉTRICA - SISTEMAS DE POTÊNCIA | B30: =MATRICULADOS!A29 -> 1109486 | C30: 21 | D30: 5 | E30: 0.082 | F30: 38 | G30: 134.86
A31: =MATRICULADOS!B30 -> ENGENHARIA ELÉTRICA - SISTEMAS ELETRÔNICOS | B31: =MATRICULADOS!A30 -> 1109487 | C31: 21 | D31: 5 | E31: 0.082 | F31: 34 | G31: 129.86
A32: =MATRICULADOS!B31 -> ENGENHARIA ELÉTRICA - TELECOMUNICAÇÕES | B32: =MATRICULADOS!A31 -> 1109488 | C32: 13 | D32: 5 | E32: 0.082 | F32: 32 | G32: 94.08
A33: =MATRICULADOS!B32 -> ENGENHARIA MECÂNICA | B33: =MATRICULADOS!A32 -> 1109489 | C33: 43 | D33: 5 | E33: 0.082 | F33: 53 | G33: 245.13
A34: =MATRICULADOS!B33 -> ESTATÍSTICA | B34: =MATRICULADOS!A33 -> 113531 | C34: 2 | D34: 5 | E34: 0.1325 | F34: 14 | G34: 26.325
A35: =MATRICULADOS!B34 -> FARMÁCIA | B35: =MATRICULADOS!A34 -> 38509 | C35: 81 | D35: 5 | E35: 0.066 | F35: 93 | G35: 446.73
A36: =MATRICULADOS!B35 -> FISIOTERAPIA | B36: =MATRICULADOS!A35 -> 13118 | C36: 62 | D36: 5 | E36: 0.066 | F36: 38 | G36: 300.46
A37: =MATRICULADOS!B36 -> JORNALISMO | B37: =MATRICULADOS!A36 -> 27657 | C37: 20 | D37: 4 | E37: 0.12 | F37: 31 | G37: 100.6
A38: =MATRICULADOS!B37 -> JORNALISMO | B38: =MATRICULADOS!A37 -> 36356 | C38: 30 | D38: 4 | E38: 0.12 | F38: 35 | G38: 139.4
A39: =MATRICULADOS!B38 -> LETRAS - LIBRAS | B39: =MATRICULADOS!A38 -> 1268983 | C39: 14 | D39: 4 | E39: 0.115 | F39: 25 | G39: 73.44
A40: =MATRICULADOS!B39 -> LICENCIATURA EM ARTES VISUAIS | B40: =MATRICULADOS!A39 -> 1153951 | C40: 8 | D40: 2 | E40: 0.1 | F40: 65 | G40: 46.1
A41: =MATRICULADOS!B40 -> LICENCIATURA EM FÍSICA - NOTURNO | B41: =MATRICULADOS!A40 -> 1166037 | C41: 4 | D41: 4 | E41: 0.1325 | F41: 12 | G41: 26.12
A42: =MATRICULADOS!B41 -> LICENCIATURA EM QUÍMICA - NOTURNO | B42: =MATRICULADOS!A41 -> 1166039 | C42: 4 | D42: 4 | E42: 0.1325 | F42: 18 | G42: 32.12
A43: =MATRICULADOS!B42 -> LICENCIATURA ENFERMAGEM (PÓS BACHARELADO APENAS) | B43: =MATRICULADOS!A42 -> 338994 | C43: 2 | D43: 5 | E43: 0.066 | F43: 1 | G43: 9.41
A44: =MATRICULADOS!B43 -> LICENCIATURA MATEMÁTICA - NOTURNO | B44: =MATRICULADOS!A43 -> 1166038 | C44: 4 | D44: 4 | E44: 0.1325 | F44: 9 | G44: 23.12
A45: =MATRICULADOS!B44 -> LICENCIATURA GEOGRAFIA (CÓDIGO DE ABI ERRADO) | B45: =MATRICULADOS!A44 -> 5000615 | C45: 0 | D45: 4 | E45: 0.1 | F45: 41 | G45: 41
A46: =MATRICULADOS!B45 -> MEDICINA | B46: =MATRICULADOS!A45 -> 13103 | C46: 222 | D46: 6 | E46: 0.065 | F46: 180 | G46: 1355.58
A47: =MATRICULADOS!B46 -> MEDICINA VETERINÁRIA | B47: =MATRICULADOS!A46 -> 1268972 | C47: 52 | D47: 5 | E47: 0.65 | F47: 98 | G47: 486.5
A48: =MATRICULADOS!B47 -> MODA | B48: =MATRICULADOS!A47 -> 1153950 | C48: 22 | D48: 2 | E48: 0.1 | F48: 65 | G48: 69.9
A49: =MATRICULADOS!B48 -> MÚSICA | B49: =MATRICULADOS!A48 -> 116490 | C49: 13 | D49: 4 | E49: 0.115 | F49: 3 | G49: 47.98
A50: =MATRICULADOS!B49 -> MÚSICA | B50: =MATRICULADOS!A49 -> 1278855 | C50: 13 | D50: 4 | E50: 0.115 | F50: 2 | G50: 46.98
A51: =MATRICULADOS!B50 -> NUTRIÇÃO | B51: =MATRICULADOS!A50 -> 116498 | C51: 66 | D51: 5 | E51: 0.066 | F51: 101 | G51: 395.53
A52: =MATRICULADOS!B51 -> ODONTOLOGIA | B52: =MATRICULADOS!A51 -> 13104 | C52: 90 | D52: 5 | E52: 0.065 | F52: 93 | G52: 483
A53: =MATRICULADOS!B52 -> PEDAGOGIA (MATUTINO/NOTURNO) | B53: =MATRICULADOS!A52 -> 13105 | C53: 49 | D53: 4 | E53: 0.1 | F53: 82 | G53: 248.6
A54: =MATRICULADOS!B53 -> PSICOLOGIA | B54: =MATRICULADOS!A53 -> 13113 | C54: 48 | D54: 5 | E54: 0.1 | F54: 50 | G54: 266.5
A55: =MATRICULADOS!B54 -> RÁDIO, TV E INTERNET | B55: =MATRICULADOS!A54 -> 1374873 | C55: 30 | D55: 4 | E55: 0.12 | F55: 28 | G55: 132.4
A56: =MATRICULADOS!B55 -> SERVIÇO SOCIAL (MATUTINO/NOTURNO) | B56: =MATRICULADOS!A55 -> 13107 | C56: 46 | D56: 4 | E56: 0.12 | F56: 65 | G56: 225.08
A57: =MATRICULADOS!B56 -> TURISMO (INTEGRAL E NOTURNO) | B57: =MATRICULADOS!A56 -> 21589 | C57: 35 | D57: 4 | E57: 0.1 | F57: 59 | G57: 178
A58: =MATRICULADOS!B57 -> ADMINISTRAÇÃO GV | B58: =MATRICULADOS!A57 -> 1178684 | C58: 30 | D58: 4 | E58: 0.12 | F58: 31 | G58: 135.4
A59: =MATRICULADOS!B58 -> CIÊNCIAS CONTÁBEIS GV | B59: =MATRICULADOS!A58 -> 1183351 | C59: 21 | D59: 4 | E59: 0.12 | F59: 13 | G59: 86.08
A60: =MATRICULADOS!B59 -> CIÊNCIAS ECONÔMICAS GV | B60: =MATRICULADOS!A59 -> 1178683 | C60: 17 | D60: 4 | E60: 0.12 | F60: 33 | G60: 92.16
A61: =MATRICULADOS!B60 -> DIREITO GV | B61: =MATRICULADOS!A60 -> 1178675 | C61: 69 | D61: 5 | E61: 0.12 | F61: 87 | G61: 408.9
A62: =MATRICULADOS!B61 -> EDUCAÇÃO FÍSICA GV | B62: =MATRICULADOS!A61 -> 1270439 | C62: 17 | D62: 5 | E62: 0.066 | F62: 38 | G62: 116.86
A63: =MATRICULADOS!B62 -> FARMÁCIA GV | B63: =MATRICULADOS!A62 -> 1185503 | C63: 24 | D63: 5 | E63: 0.066 | F63: 42 | G63: 150.42
A64: =MATRICULADOS!B63 -> FISIOTERAPIA GV | B64: =MATRICULADOS!A63 -> 1178689 | C64: 38 | D64: 5 | E64: 0.066 | F64: 25 | G64: 186.29
A65: =MATRICULADOS!B64 -> MEDICINA GV | B65: =MATRICULADOS!A64 -> 5001167 | C65: 128 | D65: 6 | E65: 0.065 | F65: 100 | G65: 775.92
A66: =MATRICULADOS!B65 -> NUTRIÇÃO GV | B66: =MATRICULADOS!A65 -> 1178688 | C66: 27 | D66: 5 | E66: 0.66 | F66: 53 | G66: 256.6
A67: =MATRICULADOS!B66 -> ODONTOLOGIA GV | B67: =MATRICULADOS!A66 -> 5001168 | C67: 27 | D67: 5 | E67: 0.65 | F67: 0 | G67: 189
A68: =MATRICULADOS!B67 -> ABI - CIÊNCIAS BIOLÓGICAS | B68: =MATRICULADOS!A67 -> 5000608 | C68: 0 | D68: 2 | E68: 0.125 | F68: 55 | G68: 27.5
A69: =MATRICULADOS!B68 -> CIÊNCIAS BIOLÓGICAS | B69: =MATRICULADOS!A68 -> 13086 | C69: 22 | D69: 4 | E69: 0.125 | F69: 16 | G69: 93
A70: =MATRICULADOS!B69 -> CIÊNCIAS BIOLÓGICAS | B70: =MATRICULADOS!A69 -> 313086 | C70: 34 | D70: 4 | E70: 0.125 | F70: 15 | G70: 134
A71: =MATRICULADOS!B70 -> ABI - EDUCAÇÃO FÍSICA | B71: =MATRICULADOS!A70 -> 5000610 | C71: 0 | D71: 2 | E71: 0.066 | F71: 83 | G71: 41.5
A72: =MATRICULADOS!B71 -> EDUCAÇÃO FÍSICA | B72: =MATRICULADOS!A71 -> 13092 | C72: 10 | D72: 5 | E72: 0.066 | F72: 48 | G72: 100.8
A73: =MATRICULADOS!B72 -> EDUCAÇÃO FÍSICA | B73: =MATRICULADOS!A72 -> 313092 | C73: 59 | D73: 5 | E73: 0.066 | F73: 2 | G73: 243.22
A74: =MATRICULADOS!B73 -> ABI - FILOSOFIA | B74: =MATRICULADOS!A73 -> 5000611 | C74: 0 | D74: 2 | E74: 0.1 | F74: 28 | G74: 14
A75: =MATRICULADOS!B74 -> FILOSOFIA | B75: =MATRICULADOS!A74 -> 13097 | C75: 17 | D75: 2 | E75: 0.1 | F75: 16 | G75: 36.9
A76: =MATRICULADOS!B75 -> FILOSOFIA | B76: =MATRICULADOS!A75 -> 313097 | C76: 7 | D76: 2 | E76: 0.1 | F76: 10 | G76: 16.9
A77: =MATRICULADOS!B76 -> ABI - FíSICA | B77: =MATRICULADOS!A76 -> 5000613 | C77: 0 | D77: 2 | E77: 0.1325 | F77: 18 | G77: 9
A78: =MATRICULADOS!B77 -> FÍSICA | B78: =MATRICULADOS!A77 -> 13098 | C78: 3 | D78: 4 | E78: 0.1325 | F78: 1 | G78: 11.59
A79: =MATRICULADOS!B78 -> FÍSICA | B79: =MATRICULADOS!A78 -> 313098 | C79: 10 | D79: 4 | E79: 0.1325 | F79: 2 | G79: 37.3
A80: =MATRICULADOS!B79 -> GEOGRAFIA | B80: =MATRICULADOS!A79 -> 313099 | C80: 19 | D80: 4 | E80: 0.1 | F80: 9 | G80: 73.6
A81: =MATRICULADOS!B80 -> GEOGRAFIA | B81: =MATRICULADOS!A80 -> 13099 | C81: 24 | D81: 4 | E81: 0.1 | F81: 42 | G81: 123.6
A82: =MATRICULADOS!B81 -> ABI - HISTÓRIA (INTEGRAL/NOTURNO) | B82: =MATRICULADOS!A81 -> 5000616 | C82: 0 | D82: 2 | E82: 0.1 | F82: 69 | G82: 34.5
A83: =MATRICULADOS!B82 -> HISTÓRIA | B83: =MATRICULADOS!A82 -> 13100 | C83: 50 | D83: 4 | E83: 0.1 | F83: 22 | G83: 192
A84: =MATRICULADOS!B83 -> HISTÓRIA | B84: =MATRICULADOS!A83 -> 313100 | C84: 17 | D84: 4 | E84: 0.1 | F84: 36 | G84: 93.8
A85: =MATRICULADOS!B84 -> ABI - LETRAS (INTEGRAL/NOTURNO). OBS. NOTURNO SÓ LICENCIATURA | B85: =MATRICULADOS!A84 -> 5000617 | C85: 0 | D85: 2 | E85: 0.115 | F85: 41 | G85: 20.5
A86: =MATRICULADOS!B85 -> LETRAS | B86: =MATRICULADOS!A85 -> 13101 | C86: 39 | D86: 4 | E86: 0.115 | F86: 59 | G86: 193.94
A87: =MATRICULADOS!B86 -> LETRAS | B87: =MATRICULADOS!A86 -> 313101 | C87: 13 | D87: 4 | E87: 0.115 | F87: 10 | G87: 54.98
A88: =MATRICULADOS!B87 -> ABI - MATEMÁTICA | B88: =MATRICULADOS!A87 -> 5000618 | C88: 0 | D88: 2 | E88: 0.1325 | F88: 13 | G88: 6.5
A89: =MATRICULADOS!B88 -> MATEMÁTICA | B89: =MATRICULADOS!A88 -> 13102 | C89: 11 | D89: 4 | E89: 0.1325 | F89: 2 | G89: 40.83
A90: =MATRICULADOS!B89 -> MATEMÁTICA | B90: =MATRICULADOS!A89 -> 313102 | C90: 9 | D90: 4 | E90: 0.1325 | F90: 4 | G90: 35.77
A91: =MATRICULADOS!B90 -> ABI - QUíMICA | B91: =MATRICULADOS!A90 -> 5000619 | C91: 0 | D91: 2 | E91: 0.1325 | F91: 42 | G91: 21
A92: =MATRICULADOS!B91 -> QUÍMICA | B92: =MATRICULADOS!A91 -> 13106 | C92: 5 | D92: 4 | E92: 0.1325 | F92: 5 | G92: 22.65
A93: =MATRICULADOS!B92 -> QUÍMICA | B93: =MATRICULADOS!A92 -> 313106 | C93: 9 | D93: 4 | E93: 0.1325 | F93: 0 | G93: 31.77
A94: =MATRICULADOS!B93 -> CIÊNCIAS EXATAS - BI/LI | B94: =MATRICULADOS!A93 -> 116502 | C94: 63 | D94: 3 | E94: 0.1 | F94: 208 | G94: 316.65
A95: =MATRICULADOS!B94 -> BACHARELADO INTERDISCIPLINAR DE HUMANAS - BI/LI INTEGRAL/NOTURNO | B95: =MATRICULADOS!A94 -> 1120242 | C95: 102 | D95: 3 | E95: 0.1 | F95: 191 | G95: 403.35
A96: =MATRICULADOS!B95 -> ABI - CIÊNCIAS SOCIAIS (13087/313087) | B96: =MATRICULADOS!A95 -> 5000609 | C96: 0 | D96: 2 | E96: 0.12 | F96: 67 | G96: 33.5
A97: =MATRICULADOS!B96 -> CIÊNCIAS SOCIAIS | B97: =MATRICULADOS!A96 -> 13087 | C97: 11 | D97: 2 | E97: 0.1 | F97: 14 | G97: 25.7
A98: =MATRICULADOS!B97 -> CIÊNCIAS SOCIAIS | B98: =MATRICULADOS!A97 -> 313087 | C98: 20 | D98: 2 | E98: 0.1 | F98: 9 | G98: 38.5
A99: =MATRICULADOS!B98 -> BACHARELADO CIÊNCIA DA RELIGIAO | B99: =MATRICULADOS!A98 -> 1165350 | C99: 6 | D99: 2 | E99: 0.1 | F99: 14 | G99: 17.2
A100: =MATRICULADOS!B99 -> LICENCIATURA CIÊNCIA DA RELIGIÃO | B100: =MATRICULADOS!A99 -> 1165686 | C100: 1 | D100: 2 | E100: 0.1 | F100: 12 | G100: 7.7
A101: =MATRICULADOS!B100 -> INTERDISCIPLINAR EM ARTES E DESIGN - BI/LI - EXTINTO | B101: =MATRICULADOS!A100 -> 116500 | C101: 98 | D101: 3 | E101: 0.1 | F101: 0 | G101: 249.9
A102: TOTAIS | C102: =SUM(C9:C101) -> 2906 | D102: =SUM(D9:D101) -> 364 | E102: 11.25 | F102: 4179 | G102: 15288.035
A104: Para os concluintes foi considerado o ano de 2022.2 para os cursos com calendário atrasado

Sheet ALUNO_EQUIV_GRADUAÇÃO
A1: COMPONENTE
A2: ALUNO EQUIVALENTE DE GRADUAÇÃO
A3: CURSO | B3: NÚMERO DE DIPLOMADOS (NDI) | C3: DURAÇÃO DO CURSO (DPC) | D3: FATOR DE RETENÇÃO | E3: INGRESSANTES (NI) | F3: PESO DO GRUPO | H3: AGE TOTAL
A4: =MATRICULADOS!B8 -> ADMINISTRAÇÃO (INTEGRAL/NOTURNO) | B4: ='ALUNO TEMPO INTEGRAL'!C9 -> 61 | C4: ='ALUNO TEMPO INTEGRAL'!D9 -> 4 | D4: ='ALUNO TEMPO INTEGRAL'!E9 -> 0.12 | E4: ='ALUNO TEMPO INTEGRAL'!F9 -> 73 | F4: 1 | G4: =SUM(((B4*C4)*(1+D4)+((E4-B4)/4)*C4)*F4) -> 285.28 | H4: =G97 -> 31956.8075
A5: =MATRICULADOS!B9 -> ARQUITETURA E URBANISMO | B5: ='ALUNO TEMPO INTEGRAL'!C10 -> 46 | C5: ='ALUNO TEMPO INTEGRAL'!D10 -> 4 | D5: ='ALUNO TEMPO INTEGRAL'!E10 -> 0.12 | E5: ='ALUNO TEMPO INTEGRAL'!F10 -> 76 | F5: 1.5 | G5: 354.12
A6: =MATRICULADOS!B10 -> BACHARELADO EM ARTES VISUAIS | B6: ='ALUNO TEMPO INTEGRAL'!C11 -> 13 | C6: ='ALUNO TEMPO INTEGRAL'!D11 -> 2 | D6: ='ALUNO TEMPO INTEGRAL'!E11 -> 0.1 | E6: ='ALUNO TEMPO INTEGRAL'!F11 -> 56 | F6: 1.5 | G6: 75.15
A7: =MATRICULADOS!B11 -> BACHARELADO ENFERMAGEM | B7: ='ALUNO TEMPO INTEGRAL'!C12 -> 53 | C7: ='ALUNO TEMPO INTEGRAL'!D12 -> 5 | D7: ='ALUNO TEMPO INTEGRAL'!E12 -> 0.066 | E7: ='ALUNO TEMPO INTEGRAL'!F12 -> 79 | F7: 1.5 | G7: 472.485
A8: =MATRICULADOS!B12 -> BACHARELADO SISTEMAS DE INFORMAÇÃO - NOTURNO | B8: ='ALUNO TEMPO INTEGRAL'!C13 -> 17 | C8: ='ALUNO TEMPO INTEGRAL'!D13 -> 4 | D8: ='ALUNO TEMPO INTEGRAL'!E13 -> 0.1325 | E8: ='ALUNO TEMPO INTEGRAL'!F13 -> 39 | F8: 1.5 | G8: 148.515
A9: =MATRICULADOS!B13 -> CIÊNCIA DA COMPUTAÇÃO - INTEGRAL | B9: ='ALUNO TEMPO INTEGRAL'!C14 -> 18 | C9: ='ALUNO TEMPO INTEGRAL'!D14 -> 4 | D9: ='ALUNO TEMPO INTEGRAL'!E14 -> 0.1325 | E9: ='ALUNO TEMPO INTEGRAL'!F14 -> 36 | F9: 1.5 | G9: 149.31
A10: =MATRICULADOS!B14 -> CIÊNCIA DA COMPUTAÇÃO - NOTURNO | B10: ='ALUNO TEMPO INTEGRAL'!C15 -> 15 | C10: ='ALUNO TEMPO INTEGRAL'!D15 -> 4 | D10: ='ALUNO TEMPO INTEGRAL'!E15 -> 0.1325 | E10: ='ALUNO TEMPO INTEGRAL'!F15 -> 39 | F10: 1.5 | G10: 137.925
A11: =MATRICULADOS!B15 -> CIÊNCIAS CONTÁBEIS (INTEGRAL/NOTURNO) | B11: ='ALUNO TEMPO INTEGRAL'!C16 -> 52 | C11: ='ALUNO TEMPO INTEGRAL'!D16 -> 4 | D11: ='ALUNO TEMPO INTEGRAL'!E16 -> 0.12 | E11: ='ALUNO TEMPO INTEGRAL'!F16 -> 73 | F11: 1 | G11: 253.96
A12: =MATRICULADOS!B16 -> CIÊNCIAS ECONÔMICAS (INTEGRAL/NOTURNO) | B12: ='ALUNO TEMPO INTEGRAL'!C17 -> 72 | C12: ='ALUNO TEMPO INTEGRAL'!D17 -> 4 | D12: ='ALUNO TEMPO INTEGRAL'!E17 -> 0.12 | E12: ='ALUNO TEMPO INTEGRAL'!F17 -> 104 | F12: 1 | G12: 354.56
A13: =MATRICULADOS!B17 -> CINEMA E AUDIOVISUAL | B13: ='ALUNO TEMPO INTEGRAL'!C18 -> 56 | C13: ='ALUNO TEMPO INTEGRAL'!D18 -> 2 | D13: ='ALUNO TEMPO INTEGRAL'!E18 -> 0.1 | E13: ='ALUNO TEMPO INTEGRAL'!F18 -> 76 | F13: 1.5 | G13: 199.8
A14: =MATRICULADOS!B18 -> DESIGN | B14: ='ALUNO TEMPO INTEGRAL'!C19 -> 49 | C14: ='ALUNO TEMPO INTEGRAL'!D19 -> 2 | D14: ='ALUNO TEMPO INTEGRAL'!E19 -> 0.1 | E14: ='ALUNO TEMPO INTEGRAL'!F19 -> 85 | F14: 1.5 | G14: 188.7
A15: =MATRICULADOS!B19 -> DIREITO | B15: ='ALUNO TEMPO INTEGRAL'!C20 -> 100 | C15: ='ALUNO TEMPO INTEGRAL'!D20 -> 5 | D15: ='ALUNO TEMPO INTEGRAL'!E20 -> 0.12 | E15: ='ALUNO TEMPO INTEGRAL'!F20 -> 96 | F15: 1 | G15: 555
A16: =MATRICULADOS!B20 -> DIREITO | B16: ='ALUNO TEMPO INTEGRAL'!C21 -> 69 | C16: ='ALUNO TEMPO INTEGRAL'!D21 -> 5 | D16: ='ALUNO TEMPO INTEGRAL'!E21 -> 0.12 | E16: ='ALUNO TEMPO INTEGRAL'!F21 -> 96 | F16: 1 | G16: 420.15
A17: =MATRICULADOS!B21 -> ENGENHARIA AMBIENTAL E SANITÁRIA | B17: ='ALUNO TEMPO INTEGRAL'!C22 -> 21 | C17: ='ALUNO TEMPO INTEGRAL'!D22 -> 5 | D17: ='ALUNO TEMPO INTEGRAL'!E22 -> 0.082 | E17: ='ALUNO TEMPO INTEGRAL'!F22 -> 40 | F17: 2 | G17: 274.72
A18: =MATRICULADOS!B22 -> ENGENHARIA CIVIL | B18: ='ALUNO TEMPO INTEGRAL'!C23 -> 77 | C18: ='ALUNO TEMPO INTEGRAL'!D23 -> 5 | D18: ='ALUNO TEMPO INTEGRAL'!E23 -> 0.082 | E18: ='ALUNO TEMPO INTEGRAL'!F23 -> 86 | F18: 2 | G18: 855.64
A19: =MATRICULADOS!B23 -> ENGENHARIA COMPUTACIONAL | B19: ='ALUNO TEMPO INTEGRAL'!C24 -> 10 | C19: ='ALUNO TEMPO INTEGRAL'!D24 -> 5 | D19: ='ALUNO TEMPO INTEGRAL'!E24 -> 0.082 | E19: ='ALUNO TEMPO INTEGRAL'!F24 -> 23 | F19: 2 | G19: 140.7
A20: =MATRICULADOS!B24 -> ENGENHARIA DE PRODUÇÃO | B20: ='ALUNO TEMPO INTEGRAL'!C25 -> 47 | C20: ='ALUNO TEMPO INTEGRAL'!D25 -> 5 | D20: ='ALUNO TEMPO INTEGRAL'!E25 -> 0.082 | E20: ='ALUNO TEMPO INTEGRAL'!F25 -> 66 | F20: 2 | G20: 556.04
A21: =MATRICULADOS!B25 -> ENGENHARIA ELÉTRICA - EM EXTINÇÃO | B21: ='ALUNO TEMPO INTEGRAL'!C26 -> 0 | C21: ='ALUNO TEMPO INTEGRAL'!D26 -> 5 | D21: ='ALUNO TEMPO INTEGRAL'!E26 -> 0.082 | E21: ='ALUNO TEMPO INTEGRAL'!F26 -> 0 | F21: 2 | G21: 0
A22: =MATRICULADOS!B26 -> ENGENHARIA ELÉTRICA - EM EXTINÇÃO | B22: ='ALUNO TEMPO INTEGRAL'!C27 -> 0 | C22: ='ALUNO TEMPO INTEGRAL'!D27 -> 5 | D22: ='ALUNO TEMPO INTEGRAL'!E27 -> 0.082 | E22: ='ALUNO TEMPO INTEGRAL'!F27 -> 0 | F22: 2 | G22: 0
A23: =MATRICULADOS!B27 -> ENGENHARIA ELÉTRICA - ENERGIA | B23: ='ALUNO TEMPO INTEGRAL'!C28 -> 28 | C23: ='ALUNO TEMPO INTEGRAL'!D28 -> 5 | D23: ='ALUNO TEMPO INTEGRAL'!E28 -> 0.082 | E23: ='ALUNO TEMPO INTEGRAL'!F28 -> 43 | F23: 2 | G23: 340.46
A24: =MATRICULADOS!B28 -> ENGENHARIA ELÉTRICA - ROBÓTICA E AUTOMAÇÃO INDUSTRIAL | B24: ='ALUNO TEMPO INTEGRAL'!C29 -> 30 | C24: ='ALUNO TEMPO INTEGRAL'!D29 -> 5 | D24: ='ALUNO TEMPO INTEGRAL'!E29 -> 0.082 | E24: ='ALUNO TEMPO INTEGRAL'!F29 -> 43 | F24: 2 | G24: 357.1
A25: =MATRICULADOS!B29 -> ENGENHARIA ELÉTRICA - SISTEMAS DE POTÊNCIA | B25: ='ALUNO TEMPO INTEGRAL'!C30 -> 21 | C25: ='ALUNO TEMPO INTEGRAL'!D30 -> 5 | D25: ='ALUNO TEMPO INTEGRAL'!E30 -> 0.082 | E25: ='ALUNO TEMPO INTEGRAL'!F30 -> 38 | F25: 2 | G25: 269.72
A26: =MATRICULADOS!B30 -> ENGENHARIA ELÉTRICA - SISTEMAS ELETRÔNICOS | B26: ='ALUNO TEMPO INTEGRAL'!C31 -> 21 | C26: ='ALUNO TEMPO INTEGRAL'!D31 -> 5 | D26: ='ALUNO TEMPO INTEGRAL'!E31 -> 0.082 | E26: ='ALUNO TEMPO INTEGRAL'!F31 -> 34 | F26: 2 | G26: 259.72
A27: =MATRICULADOS!B31 -> ENGENHARIA ELÉTRICA - TELECOMUNICAÇÕES | B27: ='ALUNO TEMPO INTEGRAL'!C32 -> 13 | C27: ='ALUNO TEMPO INTEGRAL'!D32 -> 5 | D27: ='ALUNO TEMPO INTEGRAL'!E32 -> 0.082 | E27: ='ALUNO TEMPO INTEGRAL'!F32 -> 32 | F27: 2 | G27: 188.16
A28: =MATRICULADOS!B32 -> ENGENHARIA MECÂNICA | B28: ='ALUNO TEMPO INTEGRAL'!C33 -> 43 | C28: ='ALUNO TEMPO INTEGRAL'!D33 -> 5 | D28: ='ALUNO TEMPO INTEGRAL'!E33 -> 0.082 | E28: ='ALUNO TEMPO INTEGRAL'!F33 -> 53 | F28: 2 | G28: 490.26
A29: =MATRICULADOS!B33 -> ESTATÍSTICA | B29: ='ALUNO TEMPO INTEGRAL'!C34 -> 2 | C29: ='ALUNO TEMPO INTEGRAL'!D34 -> 5 | D29: ='ALUNO TEMPO INTEGRAL'!E34 -> 0.1325 | E29: ='ALUNO TEMPO INTEGRAL'!F34 -> 14 | F29: 1.5 | G29: 39.4875
A30: =MATRICULADOS!B34 -> FARMÁCIA | B30: ='ALUNO TEMPO INTEGRAL'!C35 -> 81 | C30: ='ALUNO TEMPO INTEGRAL'!D35 -> 5 | D30: ='ALUNO TEMPO INTEGRAL'!E35 -> 0.066 | E30: ='ALUNO TEMPO INTEGRAL'!F35 -> 93 | F30: 2 | G30: 893.46
A31: =MATRICULADOS!B35 -> FISIOTERAPIA | B31: ='ALUNO TEMPO INTEGRAL'!C36 -> 62 | C31: ='ALUNO TEMPO INTEGRAL'!D36 -> 5 | D31: ='ALUNO TEMPO INTEGRAL'!E36 -> 0.066 | E31: ='ALUNO TEMPO INTEGRAL'!F36 -> 38 | F31: 1.5 | G31: 450.69
A32: =MATRICULADOS!B36 -> JORNALISMO | B32: ='ALUNO TEMPO INTEGRAL'!C37 -> 20 | C32: ='ALUNO TEMPO INTEGRAL'!D37 -> 4 | D32: ='ALUNO TEMPO INTEGRAL'!E37 -> 0.12 | E32: ='ALUNO TEMPO INTEGRAL'!F37 -> 31 | F32: 1 | G32: 100.6
A33: =MATRICULADOS!B37 -> JORNALISMO | B33: ='ALUNO TEMPO INTEGRAL'!C38 -> 30 | C33: ='ALUNO TEMPO INTEGRAL'!D38 -> 4 | D33: ='ALUNO TEMPO INTEGRAL'!E38 -> 0.12 | E33: ='ALUNO TEMPO INTEGRAL'!F38 -> 35 | F33: 1 | G33: 139.4
A34: =MATRICULADOS!B38 -> LETRAS - LIBRAS | B34: ='ALUNO TEMPO INTEGRAL'!C39 -> 14 | C34: ='ALUNO TEMPO INTEGRAL'!D39 -> 4 | D34: ='ALUNO TEMPO INTEGRAL'!E39 -> 0.115 | E34: ='ALUNO TEMPO INTEGRAL'!F39 -> 25 | F34: 1 | G34: 73.44
A35: =MATRICULADOS!B39 -> LICENCIATURA EM ARTES VISUAIS | B35: ='ALUNO TEMPO INTEGRAL'!C40 -> 8 | C35: ='ALUNO TEMPO INTEGRAL'!D40 -> 2 | D35: ='ALUNO TEMPO INTEGRAL'!E40 -> 0.1 | E35: ='ALUNO TEMPO INTEGRAL'!F40 -> 65 | F35: 1.5 | G35: 69.15
A36: =MATRICULADOS!B40 -> LICENCIATURA EM FÍSICA - NOTURNO | B36: ='ALUNO TEMPO INTEGRAL'!C41 -> 4 | C36: ='ALUNO TEMPO INTEGRAL'!D41 -> 4 | D36: ='ALUNO TEMPO INTEGRAL'!E41 -> 0.1325 | E36: ='ALUNO TEMPO INTEGRAL'!F41 -> 12 | F36: 1.5 | G36: 39.18
A37: =MATRICULADOS!B41 -> LICENCIATURA EM QUÍMICA - NOTURNO | B37: ='ALUNO TEMPO INTEGRAL'!C42 -> 4 | C37: ='ALUNO TEMPO INTEGRAL'!D42 -> 4 | D37: ='ALUNO TEMPO INTEGRAL'!E42 -> 0.1325 | E37: ='ALUNO TEMPO INTEGRAL'!F42 -> 18 | F37: 1.5 | G37: 48.18
A38: =MATRICULADOS!B42 -> LICENCIATURA ENFERMAGEM (PÓS BACHARELADO APENAS) | B38: ='ALUNO TEMPO INTEGRAL'!C43 -> 2 | C38: ='ALUNO TEMPO INTEGRAL'!D43 -> 5 | D38: ='ALUNO TEMPO INTEGRAL'!E43 -> 0.066 | E38: ='ALUNO TEMPO INTEGRAL'!F43 -> 1 | F38: 1.5 | G38: 14.115
A39: =MATRICULADOS!B43 -> LICENCIATURA MATEMÁTICA - NOTURNO | B39: ='ALUNO TEMPO INTEGRAL'!C44 -> 4 | C39: ='ALUNO TEMPO INTEGRAL'!D44 -> 4 | D39: ='ALUNO TEMPO INTEGRAL'!E44 -> 0.1325 | E39: ='ALUNO TEMPO INTEGRAL'!F44 -> 9 | F39: 1.5 | G39: 34.68
A40: =MATRICULADOS!B44 -> LICENCIATURA GEOGRAFIA (CÓDIGO DE ABI ERRADO) | B40: ='ALUNO TEMPO INTEGRAL'!C45 -> 0 | C40: ='ALUNO TEMPO INTEGRAL'!D45 -> 4 | D40: ='ALUNO TEMPO INTEGRAL'!E45 -> 0.1 | E40: ='ALUNO TEMPO INTEGRAL'!F45 -> 41 | F40: 1 | G40: 41
A41: =MATRICULADOS!B45 -> MEDICINA | B41: ='ALUNO TEMPO INTEGRAL'!C46 -> 222 | C41: ='ALUNO TEMPO INTEGRAL'!D46 -> 6 | D41: ='ALUNO TEMPO INTEGRAL'!E46 -> 0.065 | E41: ='ALUNO TEMPO INTEGRAL'!F46 -> 180 | F41: 4.5 | G41: 6100.11
A42: =MATRICULADOS!B46 -> MEDICINA VETERINÁRIA | B42: ='ALUNO TEMPO INTEGRAL'!C47 -> 52 | C42: ='ALUNO TEMPO INTEGRAL'!D47 -> 5 | D42: ='ALUNO TEMPO INTEGRAL'!E47 -> 0.65 | E42: ='ALUNO TEMPO INTEGRAL'!F47 -> 98 | F42: 4.5 | G42: 2189.25
A43: =MATRICULADOS!B47 -> MODA | B43: ='ALUNO TEMPO INTEGRAL'!C48 -> 22 | C43: ='ALUNO TEMPO INTEGRAL'!D48 -> 2 | D43: ='ALUNO TEMPO INTEGRAL'!E48 -> 0.1 | E43: ='ALUNO TEMPO INTEGRAL'!F48 -> 65 | F43: 1.5 | G43: 104.85
A44: =MATRICULADOS!B48 -> MÚSICA | B44: ='ALUNO TEMPO INTEGRAL'!C49 -> 13 | C44: ='ALUNO TEMPO INTEGRAL'!D49 -> 4 | D44: ='ALUNO TEMPO INTEGRAL'!E49 -> 0.115 | E44: ='ALUNO TEMPO INTEGRAL'!F49 -> 3 | F44: 1.5 | G44: 71.97
A45: =MATRICULADOS!B49 -> MÚSICA | B45: ='ALUNO TEMPO INTEGRAL'!C50 -> 13 | C45: ='ALUNO TEMPO INTEGRAL'!D50 -> 4 | D45: ='ALUNO TEMPO INTEGRAL'!E50 -> 0.115 | E45: ='ALUNO TEMPO INTEGRAL'!F50 -> 2 | F45: 1.5 | G45: 70.47
A46: =MATRICULADOS!B50 -> NUTRIÇÃO | B46: ='ALUNO TEMPO INTEGRAL'!C51 -> 66 | C46: ='ALUNO TEMPO INTEGRAL'!D51 -> 5 | D46: ='ALUNO TEMPO INTEGRAL'!E51 -> 0.066 | E46: ='ALUNO TEMPO INTEGRAL'!F51 -> 101 | F46: 2 | G46: 791.06
A47: =MATRICULADOS!B51 -> ODONTOLOGIA | B47: ='ALUNO TEMPO INTEGRAL'!C52 -> 90 | C47: ='ALUNO TEMPO INTEGRAL'!D52 -> 5 | D47: ='ALUNO TEMPO INTEGRAL'!E52 -> 0.065 | E47: ='ALUNO TEMPO INTEGRAL'!F52 -> 93 | F47: 4.5 | G47: 2173.5
A48: =MATRICULADOS!B52 -> PEDAGOGIA (MATUTINO/NOTURNO) | B48: ='ALUNO TEMPO INTEGRAL'!C53 -> 49 | C48: ='ALUNO TEMPO INTEGRAL'!D53 -> 4 | D48: ='ALUNO TEMPO INTEGRAL'!E53 -> 0.1 | E48: ='ALUNO TEMPO INTEGRAL'!F53 -> 82 | F48: 1 | G48: 248.6
A49: =MATRICULADOS!B53 -> PSICOLOGIA | B49: ='ALUNO TEMPO INTEGRAL'!C54 -> 48 | C49: ='ALUNO TEMPO INTEGRAL'!D54 -> 5 | D49: ='ALUNO TEMPO INTEGRAL'!E54 -> 0.1 | E49: ='ALUNO TEMPO INTEGRAL'!F54 -> 50 | F49: 1 | G49: 266.5
A50: =MATRICULADOS!B54 -> RÁDIO, TV E INTERNET | B50: ='ALUNO TEMPO INTEGRAL'!C55 -> 30 | C50: ='ALUNO TEMPO INTEGRAL'!D55 -> 4 | D50: ='ALUNO TEMPO INTEGRAL'!E55 -> 0.12 | E50: ='ALUNO TEMPO INTEGRAL'!F55 -> 28 | F50: 1 | G50: 132.4
A51: =MATRICULADOS!B55 -> SERVIÇO SOCIAL (MATUTINO/NOTURNO) | B51: ='ALUNO TEMPO INTEGRAL'!C56 -> 46 | C51: ='ALUNO TEMPO INTEGRAL'!D56 -> 4 | D51: ='ALUNO TEMPO INTEGRAL'!E56 -> 0.12 | E51: ='ALUNO TEMPO INTEGRAL'!F56 -> 65 | F51: 1 | G51: 225.08
A52: =MATRICULADOS!B56 -> TURISMO (INTEGRAL E NOTURNO) | B52: ='ALUNO TEMPO INTEGRAL'!C57 -> 35 | C52: ='ALUNO TEMPO INTEGRAL'!D57 -> 4 | D52: ='ALUNO TEMPO INTEGRAL'!E57 -> 0.1 | E52: ='ALUNO TEMPO INTEGRAL'!F57 -> 59 | F52: 1 | G52: 178
A53: =MATRICULADOS!B57 -> ADMINISTRAÇÃO GV | B53: ='ALUNO TEMPO INTEGRAL'!C58 -> 30 | C53: ='ALUNO TEMPO INTEGRAL'!D58 -> 4 | D53: ='ALUNO TEMPO INTEGRAL'!E58 -> 0.12 | E53: ='ALUNO TEMPO INTEGRAL'!F58 -> 31 | F53: 1 | G53: 135.4
A54: =MATRICULADOS!B58 -> CIÊNCIAS CONTÁBEIS GV | B54: ='ALUNO TEMPO INTEGRAL'!C59 -> 21 | C54: ='ALUNO TEMPO INTEGRAL'!D59 -> 4 | D54: ='ALUNO TEMPO INTEGRAL'!E59 -> 0.12 | E54: ='ALUNO TEMPO INTEGRAL'!F59 -> 13 | F54: 1 | G54: 86.08
A55: =MATRICULADOS!B59 -> CIÊNCIAS ECONÔMICAS GV | B55: ='ALUNO TEMPO INTEGRAL'!C60 -> 17 | C55: ='ALUNO TEMPO INTEGRAL'!D60 -> 4 | D55: ='ALUNO TEMPO INTEGRAL'!E60 -> 0.12 | E55: ='ALUNO TEMPO INTEGRAL'!F60 -> 33 | F55: 1 | G55: 92.16
A56: =MATRICULADOS!B60 -> DIREITO GV | B56: ='ALUNO TEMPO INTEGRAL'!C61 -> 69 | C56: ='ALUNO TEMPO INTEGRAL'!D61 -> 5 | D56: ='ALUNO TEMPO INTEGRAL'!E61 -> 0.12 | E56: ='ALUNO TEMPO INTEGRAL'!F61 -> 87 | F56: 1 | G56: 408.9
A57: =MATRICULADOS!B61 -> EDUCAÇÃO FÍSICA GV | B57: ='ALUNO TEMPO INTEGRAL'!C62 -> 17 | C57: ='ALUNO TEMPO INTEGRAL'!D62 -> 5 | D57: ='ALUNO TEMPO INTEGRAL'!E62 -> 0.066 | E57: ='ALUNO TEMPO INTEGRAL'!F62 -> 38 | F57: 1.5 | G57: 175.29
A58: =MATRICULADOS!B62 -> FARMÁCIA GV | B58: ='ALUNO TEMPO INTEGRAL'!C63 -> 24 | C58: ='ALUNO TEMPO INTEGRAL'!D63 -> 5 | D58: ='ALUNO TEMPO INTEGRAL'!E63 -> 0.066 | E58: ='ALUNO TEMPO INTEGRAL'!F63 -> 42 | F58: 2 | G58: 300.84
A59: =MATRICULADOS!B63 -> FISIOTERAPIA GV | B59: ='ALUNO TEMPO INTEGRAL'!C64 -> 38 | C59: ='ALUNO TEMPO INTEGRAL'!D64 -> 5 | D59: ='ALUNO TEMPO INTEGRAL'!E64 -> 0.066 | E59: ='ALUNO TEMPO INTEGRAL'!F64 -> 25 | F59: 1.5 | G59: 279.435
A60: =MATRICULADOS!B64 -> MEDICINA GV | B60: ='ALUNO TEMPO INTEGRAL'!C65 -> 128 | C60: ='ALUNO TEMPO INTEGRAL'!D65 -> 6 | D60: ='ALUNO TEMPO INTEGRAL'!E65 -> 0.065 | E60: ='ALUNO TEMPO INTEGRAL'!F65 -> 100 | F60: 4.5 | G60: 3491.64
A61: =MATRICULADOS!B65 -> NUTRIÇÃO GV | B61: ='ALUNO TEMPO INTEGRAL'!C66 -> 27 | C61: ='ALUNO TEMPO INTEGRAL'!D66 -> 5 | D61: ='ALUNO TEMPO INTEGRAL'!E66 -> 0.66 | E61: ='ALUNO TEMPO INTEGRAL'!F66 -> 53 | F61: 2 | G61: 513.2
A62: =MATRICULADOS!B66 -> ODONTOLOGIA GV | B62: ='ALUNO TEMPO INTEGRAL'!C67 -> 27 | C62: ='ALUNO TEMPO INTEGRAL'!D67 -> 5 | D62: ='ALUNO TEMPO INTEGRAL'!E67 -> 0.65 | E62: ='ALUNO TEMPO INTEGRAL'!F67 -> 0 | F62: 4.5 | G62: 850.5
A63: =MATRICULADOS!B67 -> ABI - CIÊNCIAS BIOLÓGICAS | B63: ='ALUNO TEMPO INTEGRAL'!C68 -> 0 | C63: ='ALUNO TEMPO INTEGRAL'!D68 -> 2 | D63: ='ALUNO TEMPO INTEGRAL'!E68 -> 0.125 | E63: ='ALUNO TEMPO INTEGRAL'!F68 -> 55 | F63: 2 | G63: 55
A64: =MATRICULADOS!B68 -> CIÊNCIAS BIOLÓGICAS | B64: ='ALUNO TEMPO INTEGRAL'!C69 -> 22 | C64: ='ALUNO TEMPO INTEGRAL'!D69 -> 4 | D64: ='ALUNO TEMPO INTEGRAL'!E69 -> 0.125 | E64: ='ALUNO TEMPO INTEGRAL'!F69 -> 16 | F64: 2 | G64: 186
A65: =MATRICULADOS!B69 -> CIÊNCIAS BIOLÓGICAS | B65: ='ALUNO TEMPO INTEGRAL'!C70 -> 34 | C65: ='ALUNO TEMPO INTEGRAL'!D70 -> 4 | D65: ='ALUNO TEMPO INTEGRAL'!E70 -> 0.125 | E65: ='ALUNO TEMPO INTEGRAL'!F70 -> 15 | F65: 2 | G65: 268
A66: =MATRICULADOS!B70 -> ABI - EDUCAÇÃO FÍSICA | B66: ='ALUNO TEMPO INTEGRAL'!C71 -> 0 | C66: ='ALUNO TEMPO INTEGRAL'!D71 -> 2 | D66: ='ALUNO TEMPO INTEGRAL'!E71 -> 0.066 | E66: ='ALUNO TEMPO INTEGRAL'!F71 -> 83 | F66: 1.5 | G66: 62.25
A67: =MATRICULADOS!B71 -> EDUCAÇÃO FÍSICA | B67: ='ALUNO TEMPO INTEGRAL'!C72 -> 10 | C67: ='ALUNO TEMPO INTEGRAL'!D72 -> 5 | D67: ='ALUNO TEMPO INTEGRAL'!E72 -> 0.066 | E67: ='ALUNO TEMPO INTEGRAL'!F72 -> 48 | F67: 1.5 | G67: 151.2
A68: =MATRICULADOS!B72 -> EDUCAÇÃO FÍSICA | B68: ='ALUNO TEMPO INTEGRAL'!C73 -> 59 | C68: ='ALUNO TEMPO INTEGRAL'!D73 -> 5 | D68: ='ALUNO TEMPO INTEGRAL'!E73 -> 0.066 | E68: ='ALUNO TEMPO INTEGRAL'!F73 -> 2 | F68: 1.5 | G68: 364.83
A69: =MATRICULADOS!B73 -> ABI - FILOSOFIA | B69: ='ALUNO TEMPO INTEGRAL'!C74 -> 0 | C69: ='ALUNO TEMPO INTEGRAL'!D74 -> 2 | D69: ='ALUNO TEMPO INTEGRAL'!E74 -> 0.1 | E69: ='ALUNO TEMPO INTEGRAL'!F74 -> 28 | F69: 1 | G69: 14
A70: =MATRICULADOS!B74 -> FILOSOFIA | B70: ='ALUNO TEMPO INTEGRAL'!C75 -> 17 | C70: ='ALUNO TEMPO INTEGRAL'!D75 -> 2 | D70: ='ALUNO TEMPO INTEGRAL'!E75 -> 0.1 | E70: ='ALUNO TEMPO INTEGRAL'!F75 -> 16 | F70: 1 | G70: 36.9
A71: =MATRICULADOS!B75 -> FILOSOFIA | B71: ='ALUNO TEMPO INTEGRAL'!C76 -> 7 | C71: ='ALUNO TEMPO INTEGRAL'!D76 -> 2 | D71: ='ALUNO TEMPO INTEGRAL'!E76 -> 0.1 | E71: ='ALUNO TEMPO INTEGRAL'!F76 -> 10 | F71: 1 | G71: 16.9
A72: =MATRICULADOS!B76 -> ABI - FíSICA | B72: ='ALUNO TEMPO INTEGRAL'!C77 -> 0 | C72: ='ALUNO TEMPO INTEGRAL'!D77 -> 2 | D72: ='ALUNO TEMPO INTEGRAL'!E77 -> 0.1325 | E72: ='ALUNO TEMPO INTEGRAL'!F77 -> 18 | F72: 1.5 | G72: 13.5
A73: =MATRICULADOS!B77 -> FÍSICA | B73: ='ALUNO TEMPO INTEGRAL'!C78 -> 3 | C73: ='ALUNO TEMPO INTEGRAL'!D78 -> 4 | D73: ='ALUNO TEMPO INTEGRAL'!E78 -> 0.1325 | E73: ='ALUNO TEMPO INTEGRAL'!F78 -> 1 | F73: 1.5 | G73: 17.385
A74: =MATRICULADOS!B78 -> FÍSICA | B74: ='ALUNO TEMPO INTEGRAL'!C79 -> 10 | C74: ='ALUNO TEMPO INTEGRAL'!D79 -> 4 | D74: ='ALUNO TEMPO INTEGRAL'!E79 -> 0.1325 | E74: ='ALUNO TEMPO INTEGRAL'!F79 -> 2 | F74: 1.5 | G74: 55.95
A75: =MATRICULADOS!B79 -> GEOGRAFIA | B75: ='ALUNO TEMPO INTEGRAL'!C80 -> 19 | C75: ='ALUNO TEMPO INTEGRAL'!D80 -> 4 | D75: ='ALUNO TEMPO INTEGRAL'!E80 -> 0.1 | E75: ='ALUNO TEMPO INTEGRAL'!F80 -> 9 | F75: 1 | G75: 73.6
A76: =MATRICULADOS!B80 -> GEOGRAFIA | B76: ='ALUNO TEMPO INTEGRAL'!C81 -> 24 | C76: ='ALUNO TEMPO INTEGRAL'!D81 -> 4 | D76: ='ALUNO TEMPO INTEGRAL'!E81 -> 0.1 | E76: ='ALUNO TEMPO INTEGRAL'!F81 -> 42 | F76: 1 | G76: 123.6
A77: =MATRICULADOS!B81 -> ABI - HISTÓRIA (INTEGRAL/NOTURNO) | B77: ='ALUNO TEMPO INTEGRAL'!C82 -> 0 | C77: ='ALUNO TEMPO INTEGRAL'!D82 -> 2 | D77: ='ALUNO TEMPO INTEGRAL'!E82 -> 0.1 | E77: ='ALUNO TEMPO INTEGRAL'!F82 -> 69 | F77: 1 | G77: 34.5
A78: =MATRICULADOS!B82 -> HISTÓRIA | B78: ='ALUNO TEMPO INTEGRAL'!C83 -> 50 | C78: ='ALUNO TEMPO INTEGRAL'!D83 -> 4 | D78: ='ALUNO TEMPO INTEGRAL'!E83 -> 0.1 | E78: ='ALUNO TEMPO INTEGRAL'!F83 -> 22 | F78: 1 | G78: 192
A79: =MATRICULADOS!B83 -> HISTÓRIA | B79: ='ALUNO TEMPO INTEGRAL'!C84 -> 17 | C79: ='ALUNO TEMPO INTEGRAL'!D84 -> 4 | D79: ='ALUNO TEMPO INTEGRAL'!E84 -> 0.1 | E79: ='ALUNO TEMPO INTEGRAL'!F84 -> 36 | F79: 1 | G79: 93.8
A80: =MATRICULADOS!B84 -> ABI - LETRAS (INTEGRAL/NOTURNO). OBS. NOTURNO SÓ LICENCIATURA | B80: ='ALUNO TEMPO INTEGRAL'!C85 -> 0 | C80: ='ALUNO TEMPO INTEGRAL'!D85 -> 2 | D80: ='ALUNO TEMPO INTEGRAL'!E85 -> 0.115 | E80: ='ALUNO TEMPO INTEGRAL'!F85 -> 41 | F80: 1 | G80: 20.5
A81: =MATRICULADOS!B85 -> LETRAS | B81: ='ALUNO TEMPO INTEGRAL'!C86 -> 39 | C81: ='ALUNO TEMPO INTEGRAL'!D86 -> 4 | D81: ='ALUNO TEMPO INTEGRAL'!E86 -> 0.115 | E81: ='ALUNO TEMPO INTEGRAL'!F86 -> 59 | F81: 1 | G81: 193.94
A82: =MATRICULADOS!B86 -> LETRAS | B82: ='ALUNO TEMPO INTEGRAL'!C87 -> 13 | C82: ='ALUNO TEMPO INTEGRAL'!D87 -> 4 | D82: ='ALUNO TEMPO INTEGRAL'!E87 -> 0.115 | E82: ='ALUNO TEMPO INTEGRAL'!F87 -> 10 | F82: 1 | G82: 54.98
A83: =MATRICULADOS!B87 -> ABI - MATEMÁTICA | B83: ='ALUNO TEMPO INTEGRAL'!C88 -> 0 | C83: ='ALUNO TEMPO INTEGRAL'!D88 -> 2 | D83: ='ALUNO TEMPO INTEGRAL'!E88 -> 0.1325 | E83: ='ALUNO TEMPO INTEGRAL'!F88 -> 13 | F83: 1.5 | G83: 9.75
A84: =MATRICULADOS!B88 -> MATEMÁTICA | B84: ='ALUNO TEMPO INTEGRAL'!C89 -> 11 | C84: ='ALUNO TEMPO INTEGRAL'!D89 -> 4 | D84: ='ALUNO TEMPO INTEGRAL'!E89 -> 0.1325 | E84: ='ALUNO TEMPO INTEGRAL'!F89 -> 2 | F84: 1.5 | G84: 61.245
A85: =MATRICULADOS!B89 -> MATEMÁTICA | B85: ='ALUNO TEMPO INTEGRAL'!C90 -> 9 | C85: ='ALUNO TEMPO INTEGRAL'!D90 -> 4 | D85: ='ALUNO TEMPO INTEGRAL'!E90 -> 0.1325 | E85: ='ALUNO TEMPO INTEGRAL'!F90 -> 4 | F85: 1.5 | G85: 53.655
A86: =MATRICULADOS!B90 -> ABI - QUíMICA | B86: ='ALUNO TEMPO INTEGRAL'!C91 -> 0 | C86: ='ALUNO TEMPO INTEGRAL'!D91 -> 2 | D86: ='ALUNO TEMPO INTEGRAL'!E91 -> 0.1325 | E86: ='ALUNO TEMPO INTEGRAL'!F91 -> 42 | F86: 1.5 | G86: 31.5
A87: =MATRICULADOS!B91 -> QUÍMICA | B87: ='ALUNO TEMPO INTEGRAL'!C92 -> 5 | C87: ='ALUNO TEMPO INTEGRAL'!D92 -> 4 | D87: ='ALUNO TEMPO INTEGRAL'!E92 -> 0.1325 | E87: ='ALUNO TEMPO INTEGRAL'!F92 -> 5 | F87: 1.5 | G87: 33.975
A88: =MATRICULADOS!B92 -> QUÍMICA | B88: ='ALUNO TEMPO INTEGRAL'!C93 -> 9 | C88: ='ALUNO TEMPO INTEGRAL'!D93 -> 4 | D88: ='ALUNO TEMPO INTEGRAL'!E93 -> 0.1325 | E88: ='ALUNO TEMPO INTEGRAL'!F93 -> 0 | F88: 1.5 | G88: 47.655
A89: =MATRICULADOS!B93 -> CIÊNCIAS EXATAS - BI/LI | B89: ='ALUNO TEMPO INTEGRAL'!C94 -> 63 | C89: ='ALUNO TEMPO INTEGRAL'!D94 -> 3 | D89: ='ALUNO TEMPO INTEGRAL'!E94 -> 0.1 | E89: ='ALUNO TEMPO INTEGRAL'!F94 -> 208 | F89: 2 | G89: 633.3
A90: =MATRICULADOS!B94 -> BACHARELADO INTERDISCIPLINAR DE HUMANAS - BI/LI INTEGRAL/NOTURNO | B90: ='ALUNO TEMPO INTEGRAL'!C95 -> 102 | C90: ='ALUNO TEMPO INTEGRAL'!D95 -> 3 | D90: ='ALUNO TEMPO INTEGRAL'!E95 -> 0.1 | E90: ='ALUNO TEMPO INTEGRAL'!F95 -> 191 | F90: 1 | G90: 403.35
A91: =MATRICULADOS!B95 -> ABI - CIÊNCIAS SOCIAIS (13087/313087) | B91: ='ALUNO TEMPO INTEGRAL'!C96 -> 0 | C91: ='ALUNO TEMPO INTEGRAL'!D96 -> 2 | D91: ='ALUNO TEMPO INTEGRAL'!E96 -> 0.12 | E91: ='ALUNO TEMPO INTEGRAL'!F96 -> 67 | F91: 1 | G91: 33.5
A92: =MATRICULADOS!B96 -> CIÊNCIAS SOCIAIS | B92: ='ALUNO TEMPO INTEGRAL'!C97 -> 11 | C92: ='ALUNO TEMPO INTEGRAL'!D97 -> 2 | D92: ='ALUNO TEMPO INTEGRAL'!E97 -> 0.1 | E92: ='ALUNO TEMPO INTEGRAL'!F97 -> 14 | F92: 1 | G92: 25.7
A93: =MATRICULADOS!B97 -> CIÊNCIAS SOCIAIS | B93: ='ALUNO TEMPO INTEGRAL'!C98 -> 20 | C93: ='ALUNO TEMPO INTEGRAL'!D98 -> 2 | D93: ='ALUNO TEMPO INTEGRAL'!E98 -> 0.1 | E93: ='ALUNO TEMPO INTEGRAL'!F98 -> 9 | F93: 1 | G93: 38.5
A94: =MATRICULADOS!B98 -> BACHARELADO CIÊNCIA DA RELIGIAO | B94: ='ALUNO TEMPO INTEGRAL'!C99 -> 6 | C94: ='ALUNO TEMPO INTEGRAL'!D99 -> 2 | D94: ='ALUNO TEMPO INTEGRAL'!E99 -> 0.1 | E94: ='ALUNO TEMPO INTEGRAL'!F99 -> 14 | F94: 1 | G94: 17.2
A95: =MATRICULADOS!B99 -> LICENCIATURA CIÊNCIA DA RELIGIÃO | B95: ='ALUNO TEMPO INTEGRAL'!C100 -> 1 | C95: ='ALUNO TEMPO INTEGRAL'!D100 -> 2 | D95: ='ALUNO TEMPO INTEGRAL'!E100 -> 0.1 | E95: ='ALUNO TEMPO INTEGRAL'!F100 -> 12 | F95: 1 | G95: 7.7
A96: =MATRICULADOS!B100 -> INTERDISCIPLINAR EM ARTES E DESIGN - BI/LI - EXTINTO | B96: ='ALUNO TEMPO INTEGRAL'!C101 -> 98 | C96: ='ALUNO TEMPO INTEGRAL'!D101 -> 3 | D96: ='ALUNO TEMPO INTEGRAL'!E101 -> 0.1 | E96: ='ALUNO TEMPO INTEGRAL'!F101 -> 0 | F96: 1.5 | G96: 374.85
B97: =SUM(B4:B96) -> 2906 | C97: 364 | D97: 11.25 | E97: ='ALUNO TEMPO INTEGRAL'!F102 -> 4179 | F97: =SUM(F4:F96) -> 147 | G97: 31956.8075

Sheet CONCEITO CAPES
A1: CURSO | B1: MÉDIA DO PROGRAMA
A2: ADMINISTRAÇÃO (32005016070P4) | B2: 3
A3: AMBIENTE CONSTRUÍDO (32005016029P4) | B3: 4
A4: ARTES, CULTURA E LINGUAGENS (32005016038P3) | B4: 4
A5: BIODIVERSIDADE E CONSERVAÇÃO DA NATUREZA (32005016012P4) | B5: 5
A6: CIÊNCIA DA COMPUTAÇÃO (32005016034P8) | B6: 4
A7: CIÊNCIA DA RELIGIÃO (32005016004P1) | B7: 5
A8: CIÊNCIAS BIOLÓGICAS (32005016015P3) | B8: 4
A9: CIÊNCIAS DA REABILITAÇÃO E DESEMPENHO FÍSICO-FUNCIONAL (32005016071P0) | B9: 3
A10: CIÊNCIAS FARMACÊUTICAS (32005016032P5) | B10: 4
A11: CIÊNCIAS SOCIAIS (32005016011P8) | B11: 4
A12: COMUNICAÇÃO (32005016019P9) | B12: 5
A13: DIREITO E INOVAÇÃO (32005016036P0) | B13: 4
A14: ECONOMIA (32005016016P0) | B14: 5
A15: EDUCAÇÃO (32005016007P0) | B15: 4
A16: ENFERMAGEM (32005016033P1) | B16: 4
A17: ENGENHARIA CIVIL (32005016106P9) | B17: 4
A18: ENGENHARIA ELÉTRICA (32005016005P8) | B18: 5
A19: FILOSOFIA (32005016107P5) | B19: 3
A20: FÍSICA (32005016008P7) | B20: 5
A21: GEOGRAFIA (32005016035P4) | B21: 5
A22: HISTÓRIA (32005016010P1) | B22: 6
A23: LETRAS: ESTUDOS LITERÁRIOS (32005016020P7) | B23: 5
A24: LINGÜÍSTICA (32005016022P0) | B24: 6
A25: MATEMÁTICA (32005016030P2) | B25: 4
A26: MODELAGEM COMPUTACIONAL (32005016017P6) | B26: 5
A27: ODONTOLOGIA (32005016018P2) | B27: 4
A28: PSICOLOGIA (32005016025P9) | B28: 5
A29: QUÍMICA (32005016009P3) | B29: 5
A30: SAÚDE (32005016014P7) | B30: 6
A31: SAÚDE COLETIVA (32005016021P3) | B31: 4
A32: SERVIÇO SOCIAL (32005016013P0) | B32: 5
A33: PROGRAMA EM EDUCAÇÃO FÍSICA (Programa em Rede) parceria UFV | B33: 5
A34: PROGRAMA EM MULTICÊNTRICO EM BIOQUIMICA E BIOLOGIA MOLECULAR (Programa em Rede) GV | B34: 5
A35: PROGRAMA EM MULTICÊNTRICO EM QUÍMICA DE MINAS GERAIS | B35: 4
A36: CIÊNCIAS APLICADAS À SAÚDE (31142001001P0) (GOVERNADOR VALADARES) | B36: 3
A37: CONCEITO CAPES | B37: =AVERAGE(B2:B36) -> 4.457142857
A39: FONTE: PLATAFORMA SUCUPIRA
A42: M - Mestrado Acadêmico
A43: D - Doutorado
A44: F - Mestrado Profissional

Sheet PROFESSOR_FUNCIONÁRIO-EQUIV
A1: COMPONENTE
A2: PROFESSOR EQUIVALENTE
A3: REGIME DE TRABALHO
B4: 20 HORAS | C4: 40 HORAS + DE | D4: PROFESSORES | E4: EQUIVALENTE
A5: EM EXERCÍCIO EFETIVO | B5: 116 | C5: =70+1370 -> 1440 | D5: =SUM(B5:C5) -> 1556 | E5: =SUM(B5*0.5+C5*1) -> 1498
A6: SUBSTITUTOS E VISITANTES | B6: 11 | C6: =113+1 -> 114 | D6: 125 | E6: 119.5
A7: PROFESSORES AFASTADOS | B7: 2 | C7: 68 | D7: 70 | E7: 69
A8: TOTAL PROFESSORES | B8: =SUM(B5:B6)-B7 -> 125 | C8: 1486 | D8: 1611 | E8: 1548.5
A11: COMPONENTE PARCIALMENTE AJUSTADO
A12: FUNCIONÁRIO EQUIVALENTE
B13: TOTAL DE FUNCIONÁRIOS | H13: FUNC. EQUIVALENTE
A14: REGIME DE TRABALHO | B14: 12h | C14: 20 h | D14: 24 h | E14: 30 h | F14: 40 h | G14: 44h
A15: PROFESSORES ENSINO MÉDIO | F15: =98+12 -> 110 | H15: =SUM(B15:G15) -> 110 | I15: =SUM(B15*0.3+C15*0.5+D15*0.6+E15*0.75+F15+G15*1.1) -> 110
A16: QUADRO PERMANENTE_UFJF | C16: 6 | D16: =3+17 -> 20 | E16: 19 | F16: 1229 | H16: 1274 | I16: 1258.25
A17: QUADRO PERMANENTE_HU | C17: 1 | D17: 6 | E17: 6 | F17: 180 | H17: 193 | I17: 188.6
A18: CONTRATADOS UFJF | C18: 2 | E18: 16 | F18: =46+234 -> 280 | G18: 793 | H18: 1091 | I18: 1165.3
A19: FUNCIONÁRIOS CEDIDOS/ AFASTADOS | C19: 1 | D19: 3 | E19: 3 | F19: =33+12 -> 45 | H19: 52 | I19: 49.55
A20: FUNCIONÁRIO-EQUIVALENTE_HU | B20: =SUM(B15:B18)-B19 -> 0 | C20: 8 | D20: 23 | E20: 38 | F20: 1754 | G20: 793 | H20: 2616 | I20: 2672.6
A21: FUNCIONÁRIO-EQUIVALENTE_ S_H.U. | B21: =B15+B16+B18-B19 -> 0 | C21: 7 | D21: 17 | E21: 32 | F21: 1574 | G21: 793 | H21: 2423 | I21: 2484
A22: ÍNDICES | B22: =12/40 -> 0.3 | C22: =20/40 -> 0.5 | D22: =24/40 -> 0.6 | E22: =30/40 -> 0.75 | F22: =40/40 -> 1 | G22: =44/40 -> 1.1
A24: 12X36 Considera-se regime de 40h
B93: =SUM(B4:B92) -> 254.3 | C93: 3133.5

Sheet QUALIFICAÇÃO DOCENTE
A1: QUALIFICAÇÃO DO CORPO DOCENTE - SOMENTE DEDICAÇÃO EXCLUSIVA
A2: TITULAÇÃO | B2: PROFESSORES | C2: QUALIFICAÇÃO
A3: DOUTORADO | B3: 1297 | C3: =SUM(B3*B24) -> 6485
A4: MESTRADO | B4: 65 | C4: 195
A5: ESPECIALIZAÇÃO | B5: 7 | C5: 14
A6: GRADUAÇÃO | B6: 1 | C6: 1
A7: TOTAL PROFESSORES | B7: =SUM(B3:B6) -> 1370 | C7: 6695
A8: IQCD | C8: =C7/B7 -> 4.886861314
A11: FÓRMULA PARA CÁLCULO DA QUALIFICAÇÃO DO CORPO DOCENTE
A12: 5*DOUTORES+3*MESTRES+2*ESPECIALISTAS+GRADUADOS / DOUTORES+MESTRES+ESPECIALISTAS+GRADUADOS
A18: Para qualificar o corpo docente, é aplicada, ao número de professores (professores em
A19: exercício efetivo + substitutos + visitantes - professores afastados para capacitação ou cedidos para
A20: outros órgãos e/ou entidades da administração pública em 31/12 do exercício), a seguinte
A21: ponderação, sem considerar o regime de trabalho (20 h ou 40 h semanais):
A23: QUALIFICAÇÃO | B23: PESO
A24: Docentes doutores (D) | B24: 5
A25: Docentes mestres (M) | B25: 3
A26: Docentes com especialização (E) | B26: 2
A27: Docentes graduados (G) | B27: 1

Sheet TAXA DE SUCESSO NA GRADUAÇÃO
A1: INDICADOR - TAXA DE SUCESSO NA GRADUAÇÃO | I1: Ano de elaboração: | J1: 2024
A2: CURSO | C2: DURAÇÃO DO CURSO | D2: ANO DE INGRESSO | E2: CONCLUINTES | F2: INGRESSANTES | G2: TSG | I2: Ano de referência: | J2: =J1-1 -> 2023
A3: =MATRICULADOS!B8 -> ADMINISTRAÇÃO (INTEGRAL/NOTURNO) | B3: =MATRICULADOS!A8 -> 22451 | C3: ='ALUNO TEMPO INTEGRAL'!D9 -> 4 | D3: =$J$1-C3 -> 2020 | E3: ='ALUNO TEMPO INTEGRAL'!C9 -> 61 | F3: 77 | G3: =E3/F3 -> 0.7922077922
A4: =MATRICULADOS!B9 -> ARQUITETURA E URBANISMO | B4: =MATRICULADOS!A9 -> 13114 | C4: ='ALUNO TEMPO INTEGRAL'!D10 -> 4 | D4: 2020 | E4: ='ALUNO TEMPO INTEGRAL'!C10 -> 46 | F4: 76 | G4: 0.6052631579
A5: =MATRICULADOS!B10 -> BACHARELADO EM ARTES VISUAIS | B5: =MATRICULADOS!A10 -> 1153948 | C5: ='ALUNO TEMPO INTEGRAL'!D11 -> 2 | D5: 2022 | E5: ='ALUNO TEMPO INTEGRAL'!C11 -> 13 | F5: 65 | G5: 0.2 | I5: INDICADOR
A6: =MATRICULADOS!B11 -> BACHARELADO ENFERMAGEM | B6: =MATRICULADOS!A11 -> 38994 | C6: ='ALUNO TEMPO INTEGRAL'!D12 -> 5 | D6: 2019 | E6: ='ALUNO TEMPO INTEGRAL'!C12 -> 53 | F6: 84 | G6: 0.630952381 | I6: TAXA DE SUCESSO NA GRADUAÇÃO
A7: =MATRICULADOS!B12 -> BACHARELADO SISTEMAS DE INFORMAÇÃO - NOTURNO | B7: =MATRICULADOS!A12 -> 1128364 | C7: ='ALUNO TEMPO INTEGRAL'!D13 -> 4 | D7: 2020 | E7: ='ALUNO TEMPO INTEGRAL'!C13 -> 17 | F7: 35 | G7: 0.4857142857 | I7: NÚMERO DE DIPLOMADOS (NDI) | M7: =E96 -> 2906
A8: =MATRICULADOS!B13 -> CIÊNCIA DA COMPUTAÇÃO - INTEGRAL | B8: =MATRICULADOS!A13 -> 65361 | C8: ='ALUNO TEMPO INTEGRAL'!D14 -> 4 | D8: 2020 | E8: ='ALUNO TEMPO INTEGRAL'!C14 -> 18 | F8: 28 | G8: 0.6428571429 | I8: INGRESSANTES (NI) | M8: =F96 -> 5109
A9: =MATRICULADOS!B14 -> CIÊNCIA DA COMPUTAÇÃO - NOTURNO | B9: =MATRICULADOS!A14 -> 18518 | C9: ='ALUNO TEMPO INTEGRAL'!D15 -> 4 | D9: 2020 | E9: ='ALUNO TEMPO INTEGRAL'!C15 -> 15 | F9: 37 | G9: 0.4054054054 | L9: TSG | M9: =M7/M8 -> 0.5688001566
A10: =MATRICULADOS!B15 -> CIÊNCIAS CONTÁBEIS (INTEGRAL/NOTURNO) | B10: =MATRICULADOS!A15 -> 1132074 | C10: ='ALUNO TEMPO INTEGRAL'!D16 -> 4 | D10: 2020 | E10: ='ALUNO TEMPO INTEGRAL'!C16 -> 52 | F10: 107 | G10: 0.4859813084
A11: =MATRICULADOS!B16 -> CIÊNCIAS ECONÔMICAS (INTEGRAL/NOTURNO) | B11: =MATRICULADOS!A16 -> 13090 | C11: ='ALUNO TEMPO INTEGRAL'!D17 -> 4 | D11: 2020 | E11: ='ALUNO TEMPO INTEGRAL'!C17 -> 72 | F11: 110 | G11: 0.6545454545
A12: =MATRICULADOS!B17 -> CINEMA E AUDIOVISUAL | B12: =MATRICULADOS!A17 -> 1153947 | C12: ='ALUNO TEMPO INTEGRAL'!D18 -> 2 | D12: 2022 | E12: ='ALUNO TEMPO INTEGRAL'!C18 -> 56 | F12: 82 | G12: 0.6829268293
A13: =MATRICULADOS!B18 -> DESIGN | B13: =MATRICULADOS!A18 -> 1153949 | C13: ='ALUNO TEMPO INTEGRAL'!D19 -> 2 | D13: 2022 | E13: ='ALUNO TEMPO INTEGRAL'!C19 -> 49 | F13: 73 | G13: 0.6712328767
A14: =MATRICULADOS!B19 -> DIREITO | B14: =MATRICULADOS!A19 -> 13089 | C14: ='ALUNO TEMPO INTEGRAL'!D20 -> 5 | D14: 2019 | E14: ='ALUNO TEMPO INTEGRAL'!C20 -> 100 | F14: 101 | G14: 0.9900990099
A15: =MATRICULADOS!B20 -> DIREITO | B15: =MATRICULADOS!A20 -> 21860 | C15: ='ALUNO TEMPO INTEGRAL'!D21 -> 5 | D15: 2019 | E15: ='ALUNO TEMPO INTEGRAL'!C21 -> 69 | F15: 104 | G15: 0.6634615385
A16: =MATRICULADOS!B21 -> ENGENHARIA AMBIENTAL E SANITÁRIA | B16: =MATRICULADOS!A21 -> 116496 | C16: ='ALUNO TEMPO INTEGRAL'!D22 -> 5 | D16: 2019 | E16: ='ALUNO TEMPO INTEGRAL'!C22 -> 21 | F16: 48 | G16: 0.4375
A17: =MATRICULADOS!B22 -> ENGENHARIA CIVIL | B17: =MATRICULADOS!A22 -> 13094 | C17: ='ALUNO TEMPO INTEGRAL'!D23 -> 5 | D17: 2019 | E17: ='ALUNO TEMPO INTEGRAL'!C23 -> 77 | F17: 101 | G17: 0.7623762376
A18: =MATRICULADOS!B23 -> ENGENHARIA COMPUTACIONAL | B18: =MATRICULADOS!A23 -> 1120244 | C18: ='ALUNO TEMPO INTEGRAL'!D24 -> 5 | D18: 2019 | E18: ='ALUNO TEMPO INTEGRAL'!C24 -> 10 | F18: 33 | G18: 0.303030303
A19: =MATRICULADOS!B24 -> ENGENHARIA DE PRODUÇÃO | B19: =MATRICULADOS!A24 -> 38594 | C19: ='ALUNO TEMPO INTEGRAL'!D25 -> 5 | D19: 2019 | E19: ='ALUNO TEMPO INTEGRAL'!C25 -> 47 | F19: 63 | G19: 0.746031746
A20: =MATRICULADOS!B25 -> ENGENHARIA ELÉTRICA - EM EXTINÇÃO | B20: =MATRICULADOS!A25 -> 13095 | C20: ='ALUNO TEMPO INTEGRAL'!D26 -> 5 | D20: 2019 | E20: ='ALUNO TEMPO INTEGRAL'!C26 -> 0 | F20: 0 | G20: 0
A21: =MATRICULADOS!B26 -> ENGENHARIA ELÉTRICA - EM EXTINÇÃO | B21: =MATRICULADOS!A26 -> 49788 | C21: ='ALUNO TEMPO INTEGRAL'!D27 -> 5 | D21: 2019 | E21: ='ALUNO TEMPO INTEGRAL'!C27 -> 0 | F21: 0 | G21: 0
A22: =MATRICULADOS!B27 -> ENGENHARIA ELÉTRICA - ENERGIA | B22: =MATRICULADOS!A27 -> 1109475 | C22: ='ALUNO TEMPO INTEGRAL'!D28 -> 5 | D22: 2019 | E22: ='ALUNO TEMPO INTEGRAL'!C28 -> 28 | F22: 52 | G22: =E22/F22 -> 0.5384615385
A23: =MATRICULADOS!B28 -> ENGENHARIA ELÉTRICA - ROBÓTICA E AUTOMAÇÃO INDUSTRIAL | B23: =MATRICULADOS!A28 -> 1109485 | C23: ='ALUNO TEMPO INTEGRAL'!D29 -> 5 | D23: 2019 | E23: ='ALUNO TEMPO INTEGRAL'!C29 -> 30 | F23: 47 | G23: 0.6382978723
A24: =MATRICULADOS!B29 -> ENGENHARIA ELÉTRICA - SISTEMAS DE POTÊNCIA | B24: =MATRICULADOS!A29 -> 1109486 | C24: ='ALUNO TEMPO INTEGRAL'!D30 -> 5 | D24: 2019 | E24: ='ALUNO TEMPO INTEGRAL'!C30 -> 21 | F24: 63 | G24: 0.3333333333
A25: =MATRICULADOS!B30 -> ENGENHARIA ELÉTRICA - SISTEMAS ELETRÔNICOS | B25: =MATRICULADOS!A30 -> 1109487 | C25: ='ALUNO TEMPO INTEGRAL'!D31 -> 5 | D25: 2019 | E25: ='ALUNO TEMPO INTEGRAL'!C31 -> 21 | F25: 42 | G25: 0.5
A26: =MATRICULADOS!B31 -> ENGENHARIA ELÉTRICA - TELECOMUNICAÇÕES | B26: =MATRICULADOS!A31 -> 1109488 | C26: ='ALUNO TEMPO INTEGRAL'!D32 -> 5 | D26: 2019 | E26: ='ALUNO TEMPO INTEGRAL'!C32 -> 13 | F26: 46 | G26: 0.2826086957
A27: =MATRICULADOS!B32 -> ENGENHARIA MECÂNICA | B27: =MATRICULADOS!A32 -> 1109489 | C27: ='ALUNO TEMPO INTEGRAL'!D33 -> 5 | D27: 2019 | E27: ='ALUNO TEMPO INTEGRAL'!C33 -> 43 | F27: 68 | G27: 0.6323529412
A28: =MATRICULADOS!B33 -> ESTATÍSTICA | B28: =MATRICULADOS!A33 -> 113531 | C28: ='ALUNO TEMPO INTEGRAL'!D34 -> 5 | D28: 2019 | E28: ='ALUNO TEMPO INTEGRAL'!C34 -> 2 | F28: 27 | G28: 0.07407407407
A29: =MATRICULADOS!B34 -> FARMÁCIA | B29: =MATRICULADOS!A34 -> 38509 | C29: ='ALUNO TEMPO INTEGRAL'!D35 -> 5 | D29: 2019 | E29: ='ALUNO TEMPO INTEGRAL'!C35 -> 81 | F29: 100 | G29: 0.81
A30: =MATRICULADOS!B35 -> FISIOTERAPIA | B30: =MATRICULADOS!A35 -> 13118 | C30: ='ALUNO TEMPO INTEGRAL'!D36 -> 5 | D30: 2019 | E30: ='ALUNO TEMPO INTEGRAL'!C36 -> 62 | F30: 43 | G30: 1.441860465
A31: =MATRICULADOS!B36 -> JORNALISMO | B31: =MATRICULADOS!A36 -> 27657 | C31: ='ALUNO TEMPO INTEGRAL'!D37 -> 4 | D31: 2020 | E31: ='ALUNO TEMPO INTEGRAL'!C37 -> 20 | F31: 26 | G31: 0.7692307692
A32: =MATRICULADOS!B37 -> JORNALISMO | B32: =MATRICULADOS!A37 -> 36356 | C32: ='ALUNO TEMPO INTEGRAL'!D38 -> 4 | D32: 2020 | E32: ='ALUNO TEMPO INTEGRAL'!C38 -> 30 | F32: 35 | G32: 0.8571428571
A33: =MATRICULADOS!B38 -> LETRAS - LIBRAS | B33: =MATRICULADOS!A38 -> 1268983 | C33: ='ALUNO TEMPO INTEGRAL'!D39 -> 4 | D33: 2020 | E33: ='ALUNO TEMPO INTEGRAL'!C39 -> 14 | F33: 36 | G33: 0.3888888889
A34: =MATRICULADOS!B39 -> LICENCIATURA EM ARTES VISUAIS | B34: =MATRICULADOS!A39 -> 1153951 | C34: ='ALUNO TEMPO INTEGRAL'!D40 -> 2 | D34: 2022 | E34: ='ALUNO TEMPO INTEGRAL'!C40 -> 8 | F34: 48 | G34: 0.1666666667
A35: =MATRICULADOS!B40 -> LICENCIATURA EM FÍSICA - NOTURNO | B35: =MATRICULADOS!A40 -> 1166037 | C35: ='ALUNO TEMPO INTEGRAL'!D41 -> 4 | D35: 2020 | E35: ='ALUNO TEMPO INTEGRAL'!C41 -> 4 | F35: 22 | G35: 0.1818181818
A36: =MATRICULADOS!B41 -> LICENCIATURA EM QUÍMICA - NOTURNO | B36: =MATRICULADOS!A41 -> 1166039 | C36: ='ALUNO TEMPO INTEGRAL'!D42 -> 4 | D36: 2020 | E36: ='ALUNO TEMPO INTEGRAL'!C42 -> 4 | F36: 21 | G36: 0.1904761905
A37: =MATRICULADOS!B42 -> LICENCIATURA ENFERMAGEM (PÓS BACHARELADO APENAS) | B37: =MATRICULADOS!A42 -> 338994 | C37: ='ALUNO TEMPO INTEGRAL'!D43 -> 5 | D37: 2019 | E37: ='ALUNO TEMPO INTEGRAL'!C43 -> 2 | F37: 33 | G37: 0
A38: =MATRICULADOS!B43 -> LICENCIATURA MATEMÁTICA - NOTURNO | B38: =MATRICULADOS!A43 -> 1166038 | C38: ='ALUNO TEMPO INTEGRAL'!D44 -> 4 | D38: 2020 | E38: ='ALUNO TEMPO INTEGRAL'!C44 -> 4 | F38: 28 | G38: =E38/F38 -> 0.1428571429
A39: =MATRICULADOS!B44 -> LICENCIATURA GEOGRAFIA (CÓDIGO DE ABI ERRADO) | B39: =MATRICULADOS!A44 -> 5000615 | C39: ='ALUNO TEMPO INTEGRAL'!D45 -> 4 | D39: 2020 | E39: ='ALUNO TEMPO INTEGRAL'!C45 -> 0 | F39: 11 | G39: 0
A40: =MATRICULADOS!B45 -> MEDICINA | B40: =MATRICULADOS!A45 -> 13103 | C40: ='ALUNO TEMPO INTEGRAL'!D46 -> 6 | D40: 2018 | E40: ='ALUNO TEMPO INTEGRAL'!C46 -> 222 | F40: 184 | G40: 1.206521739
A41: =MATRICULADOS!B46 -> MEDICINA VETERINÁRIA | B41: =MATRICULADOS!A46 -> 1268972 | C41: ='ALUNO TEMPO INTEGRAL'!D47 -> 5 | D41: 2019 | E41: ='ALUNO TEMPO INTEGRAL'!C47 -> 52 | F41: 97 | G41: 0.5360824742
A42: =MATRICULADOS!B47 -> MODA | B42: =MATRICULADOS!A47 -> 1153950 | C42: ='ALUNO TEMPO INTEGRAL'!D48 -> 2 | D42: 2022 | E42: ='ALUNO TEMPO INTEGRAL'!C48 -> 22 | F42: 56 | G42: 0.3928571429
A43: =MATRICULADOS!B48 -> MÚSICA | B43: =MATRICULADOS!A48 -> 116490 | C43: ='ALUNO TEMPO INTEGRAL'!D49 -> 4 | D43: 2020 | E43: ='ALUNO TEMPO INTEGRAL'!C49 -> 13 | F43: 17 | G43: 0.7647058824
A44: =MATRICULADOS!B49 -> MÚSICA | B44: =MATRICULADOS!A49 -> 1278855 | C44: ='ALUNO TEMPO INTEGRAL'!D50 -> 4 | D44: 2020 | E44: ='ALUNO TEMPO INTEGRAL'!C50 -> 13 | F44: 15 | G44: 0.8666666667
A45: =MATRICULADOS!B50 -> NUTRIÇÃO | B45: =MATRICULADOS!A50 -> 116498 | C45: ='ALUNO TEMPO INTEGRAL'!D51 -> 5 | D45: 2019 | E45: ='ALUNO TEMPO INTEGRAL'!C51 -> 66 | F45: 109 | G45: 0.6055045872
A46: =MATRICULADOS!B51 -> ODONTOLOGIA | B46: =MATRICULADOS!A51 -> 13104 | C46: ='ALUNO TEMPO INTEGRAL'!D52 -> 5 | D46: 2019 | E46: ='ALUNO TEMPO INTEGRAL'!C52 -> 90 | F46: 101 | G46: 0.8910891089
A47: =MATRICULADOS!B52 -> PEDAGOGIA (MATUTINO/NOTURNO) | B47: =MATRICULADOS!A52 -> 13105 | C47: ='ALUNO TEMPO INTEGRAL'!D53 -> 4 | D47: 2020 | E47: ='ALUNO TEMPO INTEGRAL'!C53 -> 49 | F47: 79 | G47: 0.6202531646
A48: =MATRICULADOS!B53 -> PSICOLOGIA | B48: =MATRICULADOS!A53 -> 13113 | C48: ='ALUNO TEMPO INTEGRAL'!D54 -> 5 | D48: 2019 | E48: ='ALUNO TEMPO INTEGRAL'!C54 -> 48 | F48: 59 | G48: 0.813559322
A49: =MATRICULADOS!B54 -> RÁDIO, TV E INTERNET | B49: =MATRICULADOS!A54 -> 1374873 | C49: ='ALUNO TEMPO INTEGRAL'!D55 -> 4 | D49: 2020 | E49: ='ALUNO TEMPO INTEGRAL'!C55 -> 30 | F49: 34 | G49: 0.8823529412
A50: =MATRICULADOS!B55 -> SERVIÇO SOCIAL (MATUTINO/NOTURNO) | B50: =MATRICULADOS!A55 -> 13107 | C50: ='ALUNO TEMPO INTEGRAL'!D56 -> 4 | D50: 2020 | E50: ='ALUNO TEMPO INTEGRAL'!C56 -> 46 | F50: 62 | G50: 0.7419354839
A51: =MATRICULADOS!B56 -> TURISMO (INTEGRAL E NOTURNO) | B51: =MATRICULADOS!A56 -> 21589 | C51: ='ALUNO TEMPO INTEGRAL'!D57 -> 4 | D51: 2020 | E51: ='ALUNO TEMPO INTEGRAL'!C57 -> 35 | F51: 90 | G51: 0.3888888889
A52: =MATRICULADOS!B57 -> ADMINISTRAÇÃO GV | B52: =MATRICULADOS!A57 -> 1178684 | C52: ='ALUNO TEMPO INTEGRAL'!D58 -> 4 | D52: 2020 | E52: ='ALUNO TEMPO INTEGRAL'!C58 -> 30 | F52: 69 | G52: 0.4347826087
A53: =MATRICULADOS!B58 -> CIÊNCIAS CONTÁBEIS GV | B53: =MATRICULADOS!A58 -> 1183351 | C53: ='ALUNO TEMPO INTEGRAL'!D59 -> 4 | D53: 2020 | E53: ='ALUNO TEMPO INTEGRAL'!C59 -> 21 | F53: 36 | G53: 0.5833333333
A54: =MATRICULADOS!B59 -> CIÊNCIAS ECONÔMICAS GV | B54: =MATRICULADOS!A59 -> 1178683 | C54: ='ALUNO TEMPO INTEGRAL'!D60 -> 4 | D54: 2020 | E54: ='ALUNO TEMPO INTEGRAL'!C60 -> 17 | F54: 68 | G54: 0.25
A55: =MATRICULADOS!B60 -> DIREITO GV | B55: =MATRICULADOS!A60 -> 1178675 | C55: ='ALUNO TEMPO INTEGRAL'!D61 -> 5 | D55: 2019 | E55: ='ALUNO TEMPO INTEGRAL'!C61 -> 69 | F55: 103 | G55: 0.6699029126
A56: =MATRICULADOS!B61 -> EDUCAÇÃO FÍSICA GV | B56: =MATRICULADOS!A61 -> 1270439 | C56: ='ALUNO TEMPO INTEGRAL'!D62 -> 5 | D56: 2019 | E56: ='ALUNO TEMPO INTEGRAL'!C62 -> 17 | F56: 68 | G56: 0.25
A57: =MATRICULADOS!B62 -> FARMÁCIA GV | B57: =MATRICULADOS!A62 -> 1185503 | C57: ='ALUNO TEMPO INTEGRAL'!D63 -> 5 | D57: 2019 | E57: ='ALUNO TEMPO INTEGRAL'!C63 -> 24 | F57: 71 | G57: 0.338028169
A58: =MATRICULADOS!B63 -> FISIOTERAPIA GV | B58: =MATRICULADOS!A63 -> 1178689 | C58: ='ALUNO TEMPO INTEGRAL'!D64 -> 5 | D58: 2019 | E58: ='ALUNO TEMPO INTEGRAL'!C64 -> 38 | F58: 58 | G58: 0.6551724138
A59: =MATRICULADOS!B64 -> MEDICINA GV | B59: =MATRICULADOS!A64 -> 5001167 | C59: ='ALUNO TEMPO INTEGRAL'!D65 -> 6 | D59: 2018 | E59: ='ALUNO TEMPO INTEGRAL'!C65 -> 128 | F59: 99 | G59: 1.292929293
A60: =MATRICULADOS!B65 -> NUTRIÇÃO GV | B60: =MATRICULADOS!A65 -> 1178688 | C60: ='ALUNO TEMPO INTEGRAL'!D66 -> 5 | D60: 2019 | E60: ='ALUNO TEMPO INTEGRAL'!C66 -> 27 | F60: 79 | G60: 0.3417721519
A61: =MATRICULADOS!B66 -> ODONTOLOGIA GV | B61: =MATRICULADOS!A66 -> 5001168 | C61: ='ALUNO TEMPO INTEGRAL'!D67 -> 5 | D61: 2019 | E61: ='ALUNO TEMPO INTEGRAL'!C67 -> 27 | F61: 80 | G61: 0.3375
A62: =MATRICULADOS!B67 -> ABI - CIÊNCIAS BIOLÓGICAS | B62: =MATRICULADOS!A67 -> 5000608 | C62: ='ALUNO TEMPO INTEGRAL'!D68 -> 2 | D62: 2022 | E62: ='ALUNO TEMPO INTEGRAL'!C68 -> 0 | F62: 55 | G62: 0
A63: =MATRICULADOS!B68 -> CIÊNCIAS BIOLÓGICAS | B63: =MATRICULADOS!A68 -> 13086 | C63: ='ALUNO TEMPO INTEGRAL'!D69 -> 4 | D63: 2020 | E63: ='ALUNO TEMPO INTEGRAL'!C69 -> 22 | F63: 25 | G63: =E63/F63 -> 0.88
A64: =MATRICULADOS!B69 -> CIÊNCIAS BIOLÓGICAS | B64: =MATRICULADOS!A69 -> 313086 | C64: ='ALUNO TEMPO INTEGRAL'!D70 -> 4 | D64: 2020 | E64: ='ALUNO TEMPO INTEGRAL'!C70 -> 34 | F64: 38 | G64: 0.8947368421
A65: =MATRICULADOS!B70 -> ABI - EDUCAÇÃO FÍSICA | B65: =MATRICULADOS!A70 -> 5000610 | C65: ='ALUNO TEMPO INTEGRAL'!D71 -> 2 | D65: 2022 | E65: ='ALUNO TEMPO INTEGRAL'!C71 -> 0 | F65: 79 | G65: 0
A66: =MATRICULADOS!B71 -> EDUCAÇÃO FÍSICA | B66: =MATRICULADOS!A71 -> 13092 | C66: ='ALUNO TEMPO INTEGRAL'!D72 -> 5 | D66: 2019 | E66: ='ALUNO TEMPO INTEGRAL'!C72 -> 10 | F66: 52 | G66: =E66/F66 -> 0.1923076923
A67: =MATRICULADOS!B72 -> EDUCAÇÃO FÍSICA | B67: =MATRICULADOS!A72 -> 313092 | C67: ='ALUNO TEMPO INTEGRAL'!D73 -> 5 | D67: 2019 | E67: ='ALUNO TEMPO INTEGRAL'!C73 -> 59 | F67: 23 | G67: 2.565217391
A68: =MATRICULADOS!B73 -> ABI - FILOSOFIA | B68: =MATRICULADOS!A73 -> 5000611 | C68: ='ALUNO TEMPO INTEGRAL'!D74 -> 2 | D68: 2022 | E68: ='ALUNO TEMPO INTEGRAL'!C74 -> 0 | F68: 35 | G68: 0
A69: =MATRICULADOS!B74 -> FILOSOFIA | B69: =MATRICULADOS!A74 -> 13097 | C69: ='ALUNO TEMPO INTEGRAL'!D75 -> 2 | D69: 2022 | E69: ='ALUNO TEMPO INTEGRAL'!C75 -> 17 | F69: 19 | G69: =E69/F69 -> 0.8947368421
A70: =MATRICULADOS!B75 -> FILOSOFIA | B70: =MATRICULADOS!A75 -> 313097 | C70: ='ALUNO TEMPO INTEGRAL'!D76 -> 2 | D70: 2022 | E70: ='ALUNO TEMPO INTEGRAL'!C76 -> 7 | F70: 10 | G70: 0.7
A71: =MATRICULADOS!B76 -> ABI - FíSICA | B71: =MATRICULADOS!A76 -> 5000613 | C71: ='ALUNO TEMPO INTEGRAL'!D77 -> 2 | D71: 2022 | E71: ='ALUNO TEMPO INTEGRAL'!C77 -> 0 | F71: 16 | G71: 0
A72: =MATRICULADOS!B77 -> FÍSICA | B72: =MATRICULADOS!A77 -> 13098 | C72: ='ALUNO TEMPO INTEGRAL'!D78 -> 4 | D72: 2020 | E72: ='ALUNO TEMPO INTEGRAL'!C78 -> 3 | F72: 0 | G72: =E72/F72 -> 
A73: =MATRICULADOS!B78 -> FÍSICA | B73: =MATRICULADOS!A78 -> 313098 | C73: ='ALUNO TEMPO INTEGRAL'!D79 -> 4 | D73: 2020 | E73: ='ALUNO TEMPO INTEGRAL'!C79 -> 10 | F73: 3 | G73: 3.333333333
A74: =MATRICULADOS!B79 -> GEOGRAFIA | B74: =MATRICULADOS!A79 -> 313099 | C74: ='ALUNO TEMPO INTEGRAL'!D80 -> 4 | D74: 2020 | E74: ='ALUNO TEMPO INTEGRAL'!C80 -> 19 | F74: 26 | G74: 0.7307692308
A75: =MATRICULADOS!B80 -> GEOGRAFIA | B75: =MATRICULADOS!A80 -> 13099 | C75: ='ALUNO TEMPO INTEGRAL'!D81 -> 4 | D75: 2020 | E75: ='ALUNO TEMPO INTEGRAL'!C81 -> 24 | F75: 82 | G75: 0.2926829268
A76: =MATRICULADOS!B81 -> ABI - HISTÓRIA (INTEGRAL/NOTURNO) | B76: =MATRICULADOS!A81 -> 5000616 | C76: ='ALUNO TEMPO INTEGRAL'!D82 -> 2 | D76: 2022 | E76: ='ALUNO TEMPO INTEGRAL'!C82 -> 0 | F76: 74 | G76: 0
A77: =MATRICULADOS!B82 -> HISTÓRIA | B77: =MATRICULADOS!A82 -> 13100 | C77: ='ALUNO TEMPO INTEGRAL'!D83 -> 4 | D77: 2020 | E77: ='ALUNO TEMPO INTEGRAL'!C83 -> 50 | F77: 57 | G77: =E77/F77 -> 0.8771929825
A78: =MATRICULADOS!B83 -> HISTÓRIA | B78: =MATRICULADOS!A83 -> 313100 | C78: ='ALUNO TEMPO INTEGRAL'!D84 -> 4 | D78: 2020 | E78: ='ALUNO TEMPO INTEGRAL'!C84 -> 17 | F78: 41 | G78: 0.4146341463
A79: =MATRICULADOS!B84 -> ABI - LETRAS (INTEGRAL/NOTURNO). OBS. NOTURNO SÓ LICENCIATURA | B79: =MATRICULADOS!A84 -> 5000617 | C79: ='ALUNO TEMPO INTEGRAL'!D85 -> 2 | D79: 2022 | E79: ='ALUNO TEMPO INTEGRAL'!C85 -> 0 | F79: 37 | G79: 0
A80: =MATRICULADOS!B85 -> LETRAS | B80: =MATRICULADOS!A85 -> 13101 | C80: ='ALUNO TEMPO INTEGRAL'!D86 -> 4 | D80: 2020 | E80: ='ALUNO TEMPO INTEGRAL'!C86 -> 39 | F80: 107 | G80: =E80/F80 -> 0.3644859813
A81: =MATRICULADOS!B86 -> LETRAS | B81: =MATRICULADOS!A86 -> 313101 | C81: ='ALUNO TEMPO INTEGRAL'!D87 -> 4 | D81: 2020 | E81: ='ALUNO TEMPO INTEGRAL'!C87 -> 13 | F81: 24 | G81: 0.5416666667
A82: =MATRICULADOS!B87 -> ABI - MATEMÁTICA | B82: =MATRICULADOS!A87 -> 5000618 | C82: ='ALUNO TEMPO INTEGRAL'!D88 -> 2 | D82: 2022 | E82: ='ALUNO TEMPO INTEGRAL'!C88 -> 0 | F82: 24 | G82: 0
A83: =MATRICULADOS!B88 -> MATEMÁTICA | B83: =MATRICULADOS!A88 -> 13102 | C83: ='ALUNO TEMPO INTEGRAL'!D89 -> 4 | D83: 2020 | E83: ='ALUNO TEMPO INTEGRAL'!C89 -> 11 | F83: 9 | G83: =E83/F83 -> 1.222222222
A84: =MATRICULADOS!B89 -> MATEMÁTICA | B84: =MATRICULADOS!A89 -> 313102 | C84: ='ALUNO TEMPO INTEGRAL'!D90 -> 4 | D84: 2020 | E84: ='ALUNO TEMPO INTEGRAL'!C90 -> 9 | F84: 3 | G84: 3
A85: =MATRICULADOS!B90 -> ABI - QUíMICA | B85: =MATRICULADOS!A90 -> 5000619 | C85: ='ALUNO TEMPO INTEGRAL'!D91 -> 2 | D85: 2022 | E85: ='ALUNO TEMPO INTEGRAL'!C91 -> 0 | F85: 38 | G85: 0
A86: =MATRICULADOS!B91 -> QUÍMICA | B86: =MATRICULADOS!A91 -> 13106 | C86: ='ALUNO TEMPO INTEGRAL'!D92 -> 4 | D86: 2020 | E86: ='ALUNO TEMPO INTEGRAL'!C92 -> 5 | F86: 11 | G86: =E86/F86 -> 0.4545454545
A87: =MATRICULADOS!B92 -> QUÍMICA | B87: =MATRICULADOS!A92 -> 313106 | C87: ='ALUNO TEMPO INTEGRAL'!D93 -> 4 | D87: 2020 | E87: ='ALUNO TEMPO INTEGRAL'!C93 -> 9 | F87: 24 | G87: 0.375
A88: =MATRICULADOS!B93 -> CIÊNCIAS EXATAS - BI/LI | B88: =MATRICULADOS!A93 -> 116502 | C88: ='ALUNO TEMPO INTEGRAL'!D94 -> 3 | D88: 2021 | E88: ='ALUNO TEMPO INTEGRAL'!C94 -> 63 | F88: 221 | G88: 0.2850678733
A89: =MATRICULADOS!B94 -> BACHARELADO INTERDISCIPLINAR DE HUMANAS - BI/LI INTEGRAL/NOTURNO | B89: =MATRICULADOS!A94 -> 1120242 | C89: ='ALUNO TEMPO INTEGRAL'!D95 -> 3 | D89: 2021 | E89: ='ALUNO TEMPO INTEGRAL'!C95 -> 102 | F89: 261 | G89: 0.3908045977
A90: =MATRICULADOS!B95 -> ABI - CIÊNCIAS SOCIAIS (13087/313087) | B90: =MATRICULADOS!A95 -> 5000609 | C90: ='ALUNO TEMPO INTEGRAL'!D96 -> 2 | D90: 2022 | E90: ='ALUNO TEMPO INTEGRAL'!C96 -> 0 | F90: 45 | G90: 0
A91: =MATRICULADOS!B96 -> CIÊNCIAS SOCIAIS | B91: =MATRICULADOS!A96 -> 13087 | C91: ='ALUNO TEMPO INTEGRAL'!D97 -> 2 | D91: 2022 | E91: ='ALUNO TEMPO INTEGRAL'!C97 -> 11 | F91: 25 | G91: 0
A92: =MATRICULADOS!B97 -> CIÊNCIAS SOCIAIS | B92: =MATRICULADOS!A97 -> 313087 | C92: ='ALUNO TEMPO INTEGRAL'!D98 -> 2 | D92: 2022 | E92: ='ALUNO TEMPO INTEGRAL'!C98 -> 20 | F92: 12 | G92: 0
A93: =MATRICULADOS!B98 -> BACHARELADO CIÊNCIA DA RELIGIAO | B93: =MATRICULADOS!A98 -> 1165350 | C93: ='ALUNO TEMPO INTEGRAL'!D99 -> 2 | D93: 2022 | E93: ='ALUNO TEMPO INTEGRAL'!C99 -> 6 | F93: 12 | G93: =E93/F93 -> 0.5
A94: =MATRICULADOS!B99 -> LICENCIATURA CIÊNCIA DA RELIGIÃO | B94: =MATRICULADOS!A99 -> 1165686 | C94: ='ALUNO TEMPO INTEGRAL'!D100 -> 2 | D94: 2022 | E94: ='ALUNO TEMPO INTEGRAL'!C100 -> 1 | F94: 15 | G94: 0
A95: =MATRICULADOS!B100 -> INTERDISCIPLINAR EM ARTES E DESIGN - BI/LI - EXTINTO | B95: =MATRICULADOS!A100 -> 116500 | C95: ='ALUNO TEMPO INTEGRAL'!D101 -> 3 | D95: 2021 | E95: ='ALUNO TEMPO INTEGRAL'!C101 -> 98 | F95: 0 | G95: 0
A96: TOTAL | E96: =SUM(E3:E95) -> 2906 | F96: 5109
J136: 69.7

Sheet HISTORICO
A1: SÉRIE HISTÓRICA - INDICADORES DE GESTÃO
A2: INDICADORES PRIMÁRIOS | B2: 2017 | C2: 2018 | D2: 2019 | E2: 2020 | F2: 2021 | G2: 2022 | H2: 2023
A3: ='INDICADORES TCU'!A3 -> CUSTO CORRENTE COM HU | B3: 628553903.2 | C3: 666190973.8 | D3: 682548236.1 | E3: 727731710.8 | F3: 754224765.4 | G3: 787071374.1 | H3: ='INDICADORES TCU'!B3 -> 900255671.6
A4: ='INDICADORES TCU'!A4 -> CUSTO CORRENTE SEM HU | B4: 604855746.7 | C4: 644483392.8 | D4: 661885338.3 | E4: 707077157.5 | F4: 733675198.4 | G4: 765811874.2 | H4: ='INDICADORES TCU'!B4 -> 878838255.3
A5: ='INDICADORES TCU'!A5 -> NÚMERO DE ALUNOS TEMPO INTEGRAL - ATI | B5: 18378.17 | C5: 20478 | D5: 21988.46 | E5: 20724.958 | F5: 19834.108 | G5: 19913.6565 | H5: ='INDICADORES TCU'!B5 -> 21107.035
A6: ='INDICADORES TCU'!A6 -> NÚMERO DE ALUNOS EQUIVALENTES = AGE+APGTI+ARTI | B6: 30075.17 | C6: 31352 | D6: 33776.525 | E6: 35479.691 | F6: 34018.626 | G6: 32256.50475 | H6: ='INDICADORES TCU'!B6 -> 37775.8075
A7: ='INDICADORES TCU'!A7 -> NÚMERO DE PROFESSORES EQUIVALENTES | B7: 1490 | C7: 1546 | D7: 1550.5 | E7: 1530.5 | F7: 1540.5 | G7: 1538 | H7: ='INDICADORES TCU'!B7 -> 1548.5
A8: ='INDICADORES TCU'!A8 -> NÚMERO DE FUNCIONÁRIOS EQUIVALENTES COM HU | B8: 2646 | C8: 2711 | D8: 2692.95 | E8: 2674.2 | F8: 2481.8 | G8: 2556.6 | H8: ='INDICADORES TCU'!B8 -> 2672.6
A9: ='INDICADORES TCU'!A9 -> NÚMERO DE FUNCIONÁRIOS EQUIVALENTES SEM HU | B9: 2370 | C9: 2453 | D9: 2457.25 | E9: 2446.5 | F9: 2272.2 | G9: 2359 | H9: ='INDICADORES TCU'!B9 -> 2484
A10: ='INDICADORES TCU'!A10 -> TOTAL DE ALUNOS EFETIVAMENTE MATRICULADOS NA GRADUAÇÃO - AG | B10: 19793 | C10: 19829 | D10: 20790 | E10: 20039 | F10: 21198.5 | G10: 20070.5 | H10: =MATRICULADOS!E101 -> 18962.5
A11: ='INDICADORES TCU'!A11 -> TOTAL DE ALUNOS EFETIVAMENTE MATRICULADOS NA PÓS-GRADUAÇÃO STRICTO SENSU - APG | B11: 2333.08 | C11: 2815.5 | D11: 2791.5 | E11: 2482.5 | F11: 2907 | G11: 2557 | H11: ='INDICADORES TCU'!B11 -> 2653.5
A12: ='INDICADORES TCU'!A12 -> TOTAL DE ALUNOS EFETIVAMENTE MATRICULADOS NA RESIDÊNCIA MÉDICA - AR | B12: 274.5 | C12: 266.5 | D12: 273.5 | E12: 264.5 | F12: 270.5 | G12: 267.5 | H12: ='INDICADORES TCU'!B12 -> 256
A13: ='INDICADORES TCU'!A13 -> NÚMERO DE ALUNOS DA GRADUAÇÃO EM TEMPO INTEGRAL (AgTI) | B13: 13163 | C13: 14314 | D13: 15858.46 | E13: 15230.958 | F13: 13479.108 | G13: 14264.6565 | H13: ='INDICADORES TCU'!B13 -> 15288.035
A14: ='INDICADORES TCU'!A14 -> NÚMERO DE ALUNOS EM TEMPO INTEGRAL DA PÓS-GRADUAÇÃO (APgTI) | B14: 4666.17 | C14: 5631 | D14: 5583 | E14: 4965 | F14: 5814 | G14: 5114 | H14: ='INDICADORES TCU'!B14 -> 5307
A15: ='INDICADORES TCU'!A15 -> NÚMERO DE ALUNOS DE RESIDÊNCIA MÉDICA (ARTI) | B15: 549 | C15: 533 | D15: 547 | E15: 529 | F15: 541 | G15: 535 | H15: ='INDICADORES TCU'!B15 -> 512
A16: ='INDICADORES TCU'!A16 -> ALUNO EQUIVALENTE DE GRADUAÇÃO - AgE | B16: 24860 | C16: 25188 | D16: 27646.525 | E16: 29985.691 | F16: 27663.626 | G16: 26607.50475 | H16: ='INDICADORES TCU'!B16 -> 31956.8075
A19: SÉRIE HISTÓRICA - INDICADORES DE GESTÃO
A20: Indicadores Decisão TCU 408/2002 - P | B20: 2017 | C20: 2018 | D20: 2019 | E20: 2020 | F20: 2021 | G20: 2022 | H20: 2023
A21: CUSTO CORRENTE / ALUNO EQUIVALENTE TEMPO INTEGRAL (INCLUINDO OS 35% DAS DESPESES DO(s) HU(s)) | B21: 20899.42977 | C21: 21248.75522 | D21: 20207.76963 | E21: 20511.21896 | F21: 22170.93558 | G21: 24400.39242 | H21: ='INDICADORES TCU'!B21 -> 23831.54011
A22: CUSTO CORRENTE / ALUNO EQUIVALENTE TEMPO INTEGRAL (EXCLUINDO AS DESPESES DO(s) HU(s)) | B22: 20111.4656 | C22: 20556.37257 | D22: 19596.01641 | E22: 19929.06752 | F22: 21566.86747 | G22: 23741.31606 | H22: ='INDICADORES TCU'!B22 -> 23264.57893
A23: ALUNO TEMPO INTEGRAL / NÚMERO DE PROFESSORES EQUIVALENTES | B23: 12.33434228 | C23: 13.2457956 | D23: 14.18152854 | E23: 13.54129892 | F23: 12.87511068 | G23: 12.94776105 | H23: ='INDICADORES TCU'!B23 -> 13.63063287
A24: ALUNO TEMPO INTEGRAL / FUNCIONÁRIO EQUIV. COM H.U. | B24: 6.945642479 | C24: 7.553670232 | D24: 8.165194304 | E24: 7.749965597 | F24: 7.991823676 | G24: 7.789116991 | H24: ='INDICADORES TCU'!B24 -> 7.897566041
A25: ALUNO TEMPO INTEGRAL / FUNCIONÁRIO EQUIV. SEM H.U. | B25: 7.75450211 | C25: 8.348145128 | D25: 8.948401669 | E25: 8.471268343 | F25: 8.729032656 | G25: 8.441566978 | H25: ='INDICADORES TCU'!B25 -> 8.497196055
A26: FUNCIONÁRIO EQUIV. COM H.U. / PROFESSOR EQUIV. | B26: 1.775838926 | C26: 1.753557568 | D26: 1.73682683 | E26: 1.747272133 | F26: 1.611035378 | G26: 1.662288687 | H26: ='INDICADORES TCU'!B26 -> 1.725928318
A27: FUNCIONÁRIO EQUIV. SEM H.U. / PROFESSOR EQUIV. | B27: 1.590604027 | C27: 1.586675291 | D27: 1.584811351 | E27: 1.598497223 | F27: 1.474975657 | G27: 1.533810143 | H27: ='INDICADORES TCU'!B27 -> 1.604133032
A28: GRAU DE PARTICIPAÇÃO ESTUDANTIL (GPE) | B28: 0.67 | C28: 0.72 | D28: 0.7627926888 | E28: 0.7600657717 | F28: 0.6358519707 | G28: 0.7107275105 | H28: ='INDICADORES TCU'!B28 -> 0.8062246539
A29: GRAU DE ENVOLVIMENTO COM A PÓS-GRADUAÇÃO (GEPG) | B29: 0.11 | C29: 0.12 | D29: 0.124096817 | E29: 0.1102280044 | F29: 0.120594885 | G29: 0.1130040879 | H29: ='INDICADORES TCU'!B29 -> 0.1227562916
A30: CONCEITO CAPES | B30: 3.88 | C30: 4.03 | D30: 4 | E30: 4.029411765 | F30: 4.029411765 | G30: 4.057142857 | H30: ='INDICADORES TCU'!B30 -> 4.457142857
A31: ÍNDICE DE QUALIFICAÇÃO DO CORPO DOCENTE (IQCD) | B31: 4.65 | C31: 4.71 | D31: 4.731213873 | E31: 4.768158474 | F31: 4.8133829 | G31: 4.848751836 | H31: ='INDICADORES TCU'!B31 -> 4.886861314
A32: TAXA DE SUCESSO NA GRADUAÇÃO (TSG) EM % | B32: 0.4956 | C32: 0.4722 | D32: 0.5624 | E32: 0.4938745657 | F32: 0.4212284283 | G32: 0.5510498147 | H32: ='INDICADORES TCU'!B32 -> 0.5688001566
